Body Name,Body,Service Division Label,Service Division Code,Organisational Unit,Expenditure Category,Expenditure Code,CIPFA detailed expediture type,CIPFA detailed expediture code,Narrative,Date,Transaction number,Net Amount,Capital and Revenue,Supplier Name,Supplier ID,,
Chorley Borough Council,http://statistics.data.gov.uk/id/local-authority/30UE,Central Support Services,1009,EARL - Communities,Sports Development Initiatives,40186,Miscellaneous Expenses,5034,Raise purchase order for Active Lancashire - Local Authority contribution to Active Lancashire 2023/24,29/11/2023,0188437,2000,Revenue,Active Lancashire,16348,,
Chorley Borough Council,http://statistics.data.gov.uk/id/local-authority/30UE,Planning Policy,1092,PLAN - Planning & Development,Professional Fees,40063,Services,5027,Counsel advice on plan making,08/11/2023,0187738,2475,Revenue,Alan Evans,16692,,
Chorley Borough Council,http://statistics.data.gov.uk/id/local-authority/30UE,Central Support Services,1009,GOVN - Policy & Governance,Car Leasing Payment,14100,Direct Employee Expenses,5001,"Car Lease Quote: 15880881/B1, Driver: NAME REDACTED",01/11/2023,0187733,4909.5,Revenue,ALD Automotive Ltd,84840,,
Chorley Borough Council,http://statistics.data.gov.uk/id/local-authority/30UE,Central Support Services,1009,GROW - Commercial Services,Planned Maintenance,20006,Repairs Maintenance & Alts,5005,cancelled by credit 143051,15/11/2023,0179946,1558.32,Revenue,Amalgamated Ltd,78289,,
Chorley Borough Council,http://statistics.data.gov.uk/id/local-authority/30UE,Central Support Services,1009,EARL - Communities,Impounded Dogs Costs,40207,Miscellaneous Expenses,5034,Annual Stray Dog Provisions,15/11/2023,0185781,905.6,Revenue,Animal Wardens Ltd,80965,,
Chorley Borough Council,http://statistics.data.gov.uk/id/local-authority/30UE,Homelessness,1075,EARL - Communities,Grants - Tenant Participation,40142,Grants and Subscriptions,5031,0,15/11/2023,0188216,500,Revenue,Anne Barnish,85651,,
Chorley Borough Council,http://statistics.data.gov.uk/id/local-authority/30UE,Business Support,1095,GOVN - Policy & Governance,Car Leasing Payment,14100,Direct Employee Expenses,5001,"Car Lease Quote: 22976588, Driver: NAME REDACTED",15/11/2023,0188092,5089.44,Revenue,Arnold Clark Finance Ltd,20685,,
Chorley Borough Council,http://statistics.data.gov.uk/id/local-authority/30UE,Homelessness,1075,GOVN - Policy & Governance,Car Leasing Payment,14100,Direct Employee Expenses,5001,VIN REDACTED: NAME REDACTED - Early Termination Fee,22/11/2023,0188428,1394.15,Revenue,Arnold Clark Finance Ltd,20685,,
Chorley Borough Council,http://statistics.data.gov.uk/id/local-authority/30UE,Tourism,1039,GOVN - Policy & Governance,Events Insurance,40252,Services,5027,"Additional premium for event cancellation policy - Christmas Express and Winter Wonderland., 2700 + IPT",29/11/2023,0188600,3024,Revenue,Arthur J. Gallagher,83531,,
Chorley Borough Council,http://statistics.data.gov.uk/id/local-authority/30UE,Central Support Services,1009,EARL - Communities,Misc Expenses,40200,Miscellaneous Expenses,5034,Home energy support scheme - Asda gift card,22/11/2023,0188343,500,Revenue,Asda Stores Ltd Gift,89619,,
Chorley Borough Council,http://statistics.data.gov.uk/id/local-authority/30UE,Central Support Services,1009,EARL - Communities,Core Funding Grants,40133,Grants and Subscriptions,5031,Core Small Funding Grant,15/11/2023,0188127,500,Revenue,Astley FC,89571,,
Chorley Borough Council,http://statistics.data.gov.uk/id/local-authority/30UE,Control Accounts,Control,GOVN - Policy & Governance,General Balances,00100,Balance Sheet,Balance,Recovery in respect of Policy Excesses and VAT paid,08/11/2023,0185931,632.33,Revenue,Aviva Insurance UK Ltd,85454,,
Chorley Borough Council,http://statistics.data.gov.uk/id/local-authority/30UE,Service Management & Support,1009,CUST - Customer & Digital,Hire Of Vehicles and Plant,30028,Contrct Hire & Operating Lease,5018,"As per submission to ITT invitation to Tender for the , contract hire with service and maintenance of , Grounds Maintenance Machi",01/11/2023,0187345,1242.4,Revenue,Balmers Garden Machinery,17075,,
Chorley Borough Council,http://statistics.data.gov.uk/id/local-authority/30UE,Service Management & Support,1009,CUST - Customer & Digital,Hire Of Vehicles and Plant,30028,Contrct Hire & Operating Lease,5018,hire of a John Deere 1580 out front mower for 32weeks @ 200 per week. Starting 27th March 2023,01/11/2023,0187434,800,Revenue,Balmers Garden Machinery,17075,,
Chorley Borough Council,http://statistics.data.gov.uk/id/local-authority/30UE,Service Management & Support,1009,CUST - Customer & Digital,Hire Of Vehicles and Plant,30028,Contrct Hire & Operating Lease,5018,hire of a John Deere 1580 out front mower for 32weeks @ 200 per week. Starting 27th March 2023,22/11/2023,0188316,800,Revenue,Balmers Garden Machinery,17075,,
Chorley Borough Council,http://statistics.data.gov.uk/id/local-authority/30UE,Control Accounts,Control,GOVN - Policy & Governance,General Balances,00100,Balance Sheet,Balance,"Barclaycard MS, Sept 23",03/11/2023,0186086,5713.68,Revenue,Barclaycard Commercial,59848,,
Chorley Borough Council,http://statistics.data.gov.uk/id/local-authority/30UE,Corporate Management,1008,GOVN - Policy & Governance,Bank Charges,40151,Miscellaneous Expenses,5034,"1648535, Sept 23",03/11/2023,0186090,1569.53,Revenue,Barclaycard Merchant Services,61601,,
Chorley Borough Council,http://statistics.data.gov.uk/id/local-authority/30UE,Corporate Management,1008,GOVN - Policy & Governance,Bank Charges,40151,Miscellaneous Expenses,5034,"1648537, Sept 23",03/11/2023,0186092,2486.21,Revenue,Barclaycard Merchant Services,61601,,
Chorley Borough Council,http://statistics.data.gov.uk/id/local-authority/30UE,Culture & Heritage,1036,GOVN - Policy & Governance,Publicity - Advertising,40157,Miscellaneous Expenses,5034,"Astley GHR Lancashire & Wigan Winter Partnership, 5x 10s tags daily- production included. , 6 week campaign, 294 x 10s credits de",22/11/2023,0187825,720.81,Revenue,Bauer Active Ltd,50574,,
Chorley Borough Council,http://statistics.data.gov.uk/id/local-authority/30UE,Tourism,1039,GOVN - Policy & Governance,Professional Fees,40063,Services,5027,Chorley Live Radio Ad,15/11/2023,0188110,1456.78,Revenue,Bauer Active Ltd,50574,,
Chorley Borough Council,http://statistics.data.gov.uk/id/local-authority/30UE,Service Management & Support,1009,CUST - Customer & Digital,Grounds Maintenance Contractor,20043,Grounds Maintenance Costs,5013,Various tree work - ADDRESS REDACTED,01/11/2023,0186075,750,Revenue,Beardwood Tree Services,77437,,
Chorley Borough Council,http://statistics.data.gov.uk/id/local-authority/30UE,Service Management & Support,1009,CUST - Customer & Digital,Grounds Maintenance Contractor,20043,Grounds Maintenance Costs,5013,Ash Dieback work - ADDRESS REDACTED,01/11/2023,0186075,760,Revenue,Beardwood Tree Services,77437,,
Chorley Borough Council,http://statistics.data.gov.uk/id/local-authority/30UE,Service Management & Support,1009,CUST - Customer & Digital,Grounds Maintenance Contractor,20043,Grounds Maintenance Costs,5013,Quotation 1386 - Various work in Astley Park,01/11/2023,0186075,680,Revenue,Beardwood Tree Services,77437,,
Chorley Borough Council,http://statistics.data.gov.uk/id/local-authority/30UE,Capital,Capital,GROW - Commercial Services,Other Capital Related Fees,03024,Capital Expenditure,Capital,"ADDRESS REDACTED, , Full refurb to move from commercial property to a residential building as per NAME REDACTED",08/11/2023,0187442,18605.66,Capital,Bell Decorating Group Limited,55552,,
Chorley Borough Council,http://statistics.data.gov.uk/id/local-authority/30UE,Business Support,1095,GROW - Commercial Services,Gas,20014,Energy Costs,5006,"BES1055405G, 21 Sep 22 - 25 Sep 23",01/11/2023,0187735,590.14,Revenue,BES Commercial Electricity Ltd,76115,,
Chorley Borough Council,http://statistics.data.gov.uk/id/local-authority/30UE,Homelessness,1075,EARL - Communities,Grants - Tenant Participation,40142,Grants and Subscriptions,5031,0,15/11/2023,0188214,500,Revenue,Beverley Elliott,86921,,
Chorley Borough Council,http://statistics.data.gov.uk/id/local-authority/30UE,Central Support Services,1009,CUST - Customer & Digital,Printing,40043,"Printing, Stationery & General",5026,"3000 bin handle tags, blue and brown double sided. , Digital four colour process to both sides., 170gsm synaps on synthetic paper",22/11/2023,0188327,1160,Revenue,BHW Print Group,77459,,
Chorley Borough Council,http://statistics.data.gov.uk/id/local-authority/30UE,Central Support Services,1009,EARL - Communities,Core Funding Grants,40133,Grants and Subscriptions,5031,Core Small Funding Grant,15/11/2023,0188128,500,Revenue,Bibbys Farm Scout Camp Site & Activity Centre,85621,,
Chorley Borough Council,http://statistics.data.gov.uk/id/local-authority/30UE,Central Support Services,1009,EARL - Communities,Children's Activities,40188,Miscellaneous Expenses,5034,Delivery of Chorley HAF Programme Summer 23 as per grant agreement,22/11/2023,0188315,1024,Revenue,Billington Bears Preschool Limited,89349,,
Chorley Borough Council,http://statistics.data.gov.uk/id/local-authority/30UE,Culture & Heritage,1036,GOVN - Policy & Governance,Exhibitions & Special Events,40158,Miscellaneous Expenses,5034,Performance for Astley Illuminated 10th November 2023,22/11/2023,0188345,1500,Revenue,Blues Harvest,89566,,
Chorley Borough Council,http://statistics.data.gov.uk/id/local-authority/30UE,Control Accounts,Control,GROW - Commercial Services,Manual Control Account,00001,Balance Sheet,Balance,,22/11/2023,0188328,1047,Revenue,Brick Technology Limited,89442,,
Chorley Borough Council,http://statistics.data.gov.uk/id/local-authority/30UE,Economic Development,1096,GROW - Commercial Services,Electricity,20013,Energy Costs,5006,Unit 23 Chorley Market,01/11/2023,0187443,718,Revenue,British Gas Business,22242,,
Chorley Borough Council,http://statistics.data.gov.uk/id/local-authority/30UE,Economic Development,1096,GROW - Commercial Services,Electricity,20013,Energy Costs,5006,Biliing period : 9 October 2023 to 8 November 2023,29/11/2023,0188651,3050.03,Revenue,British Gas Business,22242,,
Chorley Borough Council,http://statistics.data.gov.uk/id/local-authority/30UE,Central Support Services,1009,CUST - Customer & Digital,Telephones - Rentals,40083,Communication and Computing,5028,"VP 7364 4270, Regular Charges",08/11/2023,0187727,9893.33,Revenue,British Telecommunications Plc,17131,,
Chorley Borough Council,http://statistics.data.gov.uk/id/local-authority/30UE,Central Support Services,1009,CUST - Customer & Digital,Telephones - Other,40085,Communication and Computing,5028,"VP 7364 4270, One-off Charges",08/11/2023,0187727,614,Revenue,British Telecommunications Plc,17131,,
Chorley Borough Council,http://statistics.data.gov.uk/id/local-authority/30UE,Central Support Services,1009,EARL - Communities,Misc Expenses,40200,Miscellaneous Expenses,5034,Red Bank Mission/Scout Hut works as agreed,08/11/2023,0182043,14828.26,Revenue,Bryan Lee Building Contractors Ltd,78160,,
Chorley Borough Council,http://statistics.data.gov.uk/id/local-authority/30UE,Business Support,1095,GROW - Commercial Services,General Repairs - Reactive,20004,Repairs Maintenance & Alts,5005,Market Walk Reactive General Building Repair Works,01/11/2023,0185856,555,Revenue,Bryan Lee Building Contractors Ltd,78160,,
Chorley Borough Council,http://statistics.data.gov.uk/id/local-authority/30UE,Central Support Services,1009,GROW - Commercial Services,General Repairs - Reactive,20004,Repairs Maintenance & Alts,5005,CBC Parks Buildings Reactive General Building Repair Works,01/11/2023,0185857,681.6,Revenue,Bryan Lee Building Contractors Ltd,78160,,
Chorley Borough Council,http://statistics.data.gov.uk/id/local-authority/30UE,Central Support Services,1009,GROW - Commercial Services,General Repairs - Reactive,20004,Repairs Maintenance & Alts,5005,CBC Housing Reactive General Building Repair Works,01/11/2023,0186048,698,Revenue,Bryan Lee Building Contractors Ltd,78160,,
Chorley Borough Council,http://statistics.data.gov.uk/id/local-authority/30UE,Central Support Services,1009,GROW - Commercial Services,General Repairs - Reactive,20004,Repairs Maintenance & Alts,5005,Cotswold House Reactive General Building Repair Works,01/11/2023,0186058,679.06,Revenue,Bryan Lee Building Contractors Ltd,78160,,
Chorley Borough Council,http://statistics.data.gov.uk/id/local-authority/30UE,Central Support Services,1009,GROW - Commercial Services,General Repairs - Reactive,20004,Repairs Maintenance & Alts,5005,Cotswold House Reactive General Building Repair Works,01/11/2023,0186059,615.35,Revenue,Bryan Lee Building Contractors Ltd,78160,,
Chorley Borough Council,http://statistics.data.gov.uk/id/local-authority/30UE,Community Development,1097,GROW - Commercial Services,General Repairs - Reactive,20004,Repairs Maintenance & Alts,5005,CAB - 35/39 Market Street Reactive General Building Repair Works,01/11/2023,0187423,921.98,Revenue,Bryan Lee Building Contractors Ltd,78160,,
Chorley Borough Council,http://statistics.data.gov.uk/id/local-authority/30UE,Community Development,1097,GROW - Commercial Services,General Repairs - Reactive,20004,Repairs Maintenance & Alts,5005,CAB - 35/39 Market Street Reactive General Building Repair Works,01/11/2023,0187424,902,Revenue,Bryan Lee Building Contractors Ltd,78160,,
Chorley Borough Council,http://statistics.data.gov.uk/id/local-authority/30UE,Central Support Services,1009,GROW - Commercial Services,General Repairs - Reactive,20004,Repairs Maintenance & Alts,5005,Cotswold House Reactive General Building Repair Works,22/11/2023,0188242,768.98,Revenue,Bryan Lee Building Contractors Ltd,78160,,
Chorley Borough Council,http://statistics.data.gov.uk/id/local-authority/30UE,Business Support,1095,GROW - Commercial Services,General Repairs - Reactive,20004,Repairs Maintenance & Alts,5005,Strawberry Fields Reactive General Building Repair Works,29/11/2023,0188346,1722.52,Revenue,Bryan Lee Building Contractors Ltd,78160,,
Chorley Borough Council,http://statistics.data.gov.uk/id/local-authority/30UE,Central Support Services,1009,GROW - Commercial Services,General Repairs - Reactive,20004,Repairs Maintenance & Alts,5005,Astley Hall & Buildings Reactive General Building Repair Works,29/11/2023,0188349,5636.39,Revenue,Bryan Lee Building Contractors Ltd,78160,,
Chorley Borough Council,http://statistics.data.gov.uk/id/local-authority/30UE,Central Support Services,1009,GROW - Commercial Services,General Repairs - Reactive,20004,Repairs Maintenance & Alts,5005,Astley Hall & Buildings Reactive General Building Repair Works,29/11/2023,0188350,3449.4,Revenue,Bryan Lee Building Contractors Ltd,78160,,
Chorley Borough Council,http://statistics.data.gov.uk/id/local-authority/30UE,Central Support Services,1009,GROW - Commercial Services,General Repairs - Reactive,20004,Repairs Maintenance & Alts,5005,Outhouse asbestos removal and installation of new plastic guttering at Astley Park Coach House,29/11/2023,0188351,1830.3,Revenue,Bryan Lee Building Contractors Ltd,78160,,
Chorley Borough Council,http://statistics.data.gov.uk/id/local-authority/30UE,Central Support Services,1009,GROW - Commercial Services,General Repairs - Reactive,20004,Repairs Maintenance & Alts,5005,Astley Hall & Buildings Reactive General Building Repair Works,29/11/2023,0188355,746.47,Revenue,Bryan Lee Building Contractors Ltd,78160,,
Chorley Borough Council,http://statistics.data.gov.uk/id/local-authority/30UE,Service Management & Support,1009,CUST - Customer & Digital,External Contractor,40198,Miscellaneous Expenses,5034,"Bengal St Depot � Empty yard catch pits each month  450 x 12 = 5400.00, Bengal St Depot � Empty yard interceptor every 3 month",08/11/2023,0187745,750,Revenue,C J Lyon,16579,,
Chorley Borough Council,http://statistics.data.gov.uk/id/local-authority/30UE,Service Management & Support,1009,CUST - Customer & Digital,External Contractor,40198,Miscellaneous Expenses,5034,"Bengal St Depot � Empty yard catch pits each month  450 x 12 = 5400.00, Bengal St Depot � Empty yard interceptor every 3 month",15/11/2023,0188102,750,Revenue,C J Lyon,16579,,
Chorley Borough Council,http://statistics.data.gov.uk/id/local-authority/30UE,Business Support,1095,GOVN - Policy & Governance,Grants To Other Organisations,40127,Grants and Subscriptions,5031,Grant for works at ADDRESS REDACTED,15/11/2023,0187724,4900,Revenue,CAKE by Hannah Jones Limited,89649,,
Chorley Borough Council,http://statistics.data.gov.uk/id/local-authority/30UE,Central Support Services,1009,EARL - Communities,Tools & Equipment - Maintenance,40005,"Equipment, Furniture & Materia",5023,", UKAS Calibration of:, , CALU-SLM	2 x Sound Level Meter (excludes Filters & RT options) @ 371 each	742.00, CALU-CAL	2 x Sound ",15/11/2023,0187775,984,Revenue,Campbell Associates,21084,,
Chorley Borough Council,http://statistics.data.gov.uk/id/local-authority/30UE,Corporate Management,1008,GROW - Commercial Services,Promotional Expenses,40159,Miscellaneous Expenses,5034,"To supply entertainment for the Fun Thursday event on Market Walk on the 6th April 2023, , Themed Easter Craft Workshop - Make an",15/11/2023,0188008,1200,Revenue,Candy House Events and Entertainment,85030,,
Chorley Borough Council,http://statistics.data.gov.uk/id/local-authority/30UE,Culture & Heritage,1036,GOVN - Policy & Governance,Exhibitions & Special Events,40158,Miscellaneous Expenses,5034,"Entrance archway (truss, low fog machine and LED strip lights)	335 	, Lasers inc generator and operator 	850, Hall fa�ade, laser ",15/11/2023,0185845,3245,Revenue,CDS Events,81168,,
Chorley Borough Council,http://statistics.data.gov.uk/id/local-authority/30UE,Culture & Heritage,1036,GOVN - Policy & Governance,Arts Development Initiatives,40187,Miscellaneous Expenses,5034,"Crew & transport 	3125",15/11/2023,0185845,3125,Revenue,CDS Events,81168,,
Chorley Borough Council,http://statistics.data.gov.uk/id/local-authority/30UE,Tourism,1039,GOVN - Policy & Governance,Tools & Equipment - Hire,40004,"Equipment, Furniture & Materia",5023,"Astley Park Bonfire and Fireworks: Lighting Hire - supply, setup and collect five lighting towers for the Astley Park bonfire eve",15/11/2023,0188144,975,Revenue,CDS Events,81168,,
Chorley Borough Council,http://statistics.data.gov.uk/id/local-authority/30UE,Parking Services,1066,GROW - Commercial Services,External Contractors,50008,Private Contractors,5042,"Processing 075, , Processing 076, , Processing 077, , Processing 079, , Processing 080, , Processing 085, , Processing 086, , MIP",29/11/2023,0188282,867.74,Revenue,Chipside Ltd,22063,,
Chorley Borough Council,http://statistics.data.gov.uk/id/local-authority/30UE,Central Support Services,1009,EARL - Communities,Core Funding Grants,40133,Grants and Subscriptions,5031,Core Small Funding Grant,15/11/2023,0188130,500,Revenue,Chorley In Bloom group,70247,,
Chorley Borough Council,http://statistics.data.gov.uk/id/local-authority/30UE,Control Accounts,Control,GOVN - Policy & Governance,Manual Control Account,00001,Balance Sheet,Balance,,08/11/2023,0187756,27780.48,Revenue,Chorley Leisure Ltd,83376,,
Chorley Borough Council,http://statistics.data.gov.uk/id/local-authority/30UE,Central Support Services,1009,EARL - Communities,Core Funding Grants,40133,Grants and Subscriptions,5031,Core Small Funding Grant,15/11/2023,0188133,500,Revenue,Chorley Wanderers Junior Football Club,78260,,
Chorley Borough Council,http://statistics.data.gov.uk/id/local-authority/30UE,Community Development,1097,EARL - Communities,Core Funding Grants,40133,Grants and Subscriptions,5031,Chorley Women`s Centre � vulnerable adults (women) - Delivery of Commissioned Services  2nd payment,29/11/2023,0188361,4000,Revenue,Chorley Womens Centre,17036,,
Chorley Borough Council,http://statistics.data.gov.uk/id/local-authority/30UE,Community Development,1097,EARL - Communities,Core Funding Grants,40133,Grants and Subscriptions,5031,Chorley Women`s Centre � Mental Wellbeing Support - Delivery of Commissioned Services  2nd payment,22/11/2023,0188362,7500,Revenue,Chorley Womens Centre,17036,,
Chorley Borough Council,http://statistics.data.gov.uk/id/local-authority/30UE,Central Support Services,1009,GOVN - Policy & Governance,General Subscriptions,40146,Grants and Subscriptions,5031,Publications subscription 2023-24,15/11/2023,0188200,6082.5,Revenue,CIPFA Business Ltd,16247,,
Chorley Borough Council,http://statistics.data.gov.uk/id/local-authority/30UE,Corporate Management,1008,EARL - Communities,Other Contributions,40145,Grants and Subscriptions,5031,Citizens Advice Lancashire - Household Support Fund 4 � additional allocation as agreed,29/11/2023,0188552,23000,Revenue,Citizens Advice Lancashire,17035,,
Chorley Borough Council,http://statistics.data.gov.uk/id/local-authority/30UE,Community Development,1097,EARL - Communities,Citizens Advice Bureau,40125,Grants and Subscriptions,5031,Citizens Advice Lancashire - Delivery of Commissioned Services  3rd payment,29/11/2023,0188553,18934,Revenue,Citizens Advice Lancashire,17035,,
Chorley Borough Council,http://statistics.data.gov.uk/id/local-authority/30UE,Community Development,1097,EARL - Communities,Citizens Advice Bureau,40125,Grants and Subscriptions,5031,Citizens Advice Lancashire - Delivery of Commissioned Services  2nd payment,29/11/2023,0188554,18933,Revenue,Citizens Advice Lancashire,17035,,
Chorley Borough Council,http://statistics.data.gov.uk/id/local-authority/30UE,Economic Development,1096,GROW - Commercial Services,Christmas Lights,40179,Miscellaneous Expenses,5034,"Chorley Town Centre Christmas Display 2023/24, , Portland Street/Mcdonalds area, Storage, installation and dismantle of area sche",22/11/2023,0188032,9953.75,Revenue,City Illuminations Ltd,77388,,
Chorley Borough Council,http://statistics.data.gov.uk/id/local-authority/30UE,Central Support Services,1009,CUST - Customer & Digital,IT Software - Annual Licences,40101,Communication and Computing,5028,"Civica Property Management (CPM) (formerly Tech Forge), 5 year contract 50/50 between authorities. , 329,500 total contract value",29/11/2023,0186202,78800,Revenue,Civica UK Limited,17463,,
Chorley Borough Council,http://statistics.data.gov.uk/id/local-authority/30UE,Homelessness,1075,EARL - Communities,Grants - Tenant Participation,40142,Grants and Subscriptions,5031,0,15/11/2023,0188207,500,Revenue,Claire Pilkington,85424,,
Chorley Borough Council,http://statistics.data.gov.uk/id/local-authority/30UE,Central Support Services,1009,CUST - Customer & Digital,Computer Equipment-Purchase,40098,Communication and Computing,5028,Astley Hall Wifi Existing CCTV for AP20,08/11/2023,0183390,1227.14,Revenue,Core Integrated Solutions,77043,,
Chorley Borough Council,http://statistics.data.gov.uk/id/local-authority/30UE,Recreation & Sport,1037,GROW - Commercial Services,Gas,20014,Energy Costs,5006,"Astley Hall, Astley park",01/11/2023,0187529,1804.69,Revenue,Corona Energy Retail 2 Ltd,67249,,
Chorley Borough Council,http://statistics.data.gov.uk/id/local-authority/30UE,Central Support Services,1009,GROW - Commercial Services,Gas,20014,Energy Costs,5006,Civic offices,01/11/2023,0187532,2166.02,Revenue,Corona Energy Retail 2 Ltd,67249,,
Chorley Borough Council,http://statistics.data.gov.uk/id/local-authority/30UE,Recreation & Sport,1037,GROW - Commercial Services,Gas,20014,Energy Costs,5006,Centre Drive,01/11/2023,0187533,2825.19,Revenue,Corona Energy Retail 2 Ltd,67249,,
Chorley Borough Council,http://statistics.data.gov.uk/id/local-authority/30UE,Business Support,1095,GROW - Commercial Services,Gas,20014,Energy Costs,5006,Fleet Street,01/11/2023,0187535,6840.93,Revenue,Corona Energy Retail 2 Ltd,67249,,
Chorley Borough Council,http://statistics.data.gov.uk/id/local-authority/30UE,Recreation & Sport,1037,GROW - Commercial Services,Gas,20014,Energy Costs,5006,Clayton Brook Village Hall,01/11/2023,0187537,679.03,Revenue,Corona Energy Retail 2 Ltd,67249,,
Chorley Borough Council,http://statistics.data.gov.uk/id/local-authority/30UE,Recreation & Sport,1037,GROW - Commercial Services,Gas,20014,Energy Costs,5006,Astley Village Community Centre,01/11/2023,0187539,667.47,Revenue,Corona Energy Retail 2 Ltd,67249,,
Chorley Borough Council,http://statistics.data.gov.uk/id/local-authority/30UE,Recreation & Sport,1037,GROW - Commercial Services,Gas,20014,Energy Costs,5006,Lodge Bank,01/11/2023,0187540,10166.51,Revenue,Corona Energy Retail 2 Ltd,67249,,
Chorley Borough Council,http://statistics.data.gov.uk/id/local-authority/30UE,Recreation & Sport,1037,GROW - Commercial Services,Gas,20014,Energy Costs,5006,Water street,01/11/2023,0187541,33126.12,Revenue,Corona Energy Retail 2 Ltd,67249,,
Chorley Borough Council,http://statistics.data.gov.uk/id/local-authority/30UE,Open Spaces,1038,GROW - Commercial Services,Gas,20014,Energy Costs,5006,sept - oct 23,01/11/2023,0187622,686.91,Revenue,Corona Energy Retail 2 Ltd,67249,,
Chorley Borough Council,http://statistics.data.gov.uk/id/local-authority/30UE,Homelessness,1075,GROW - Commercial Services,Gas,20014,Energy Costs,5006,gas charges,15/11/2023,0188190,1604.66,Revenue,Corona Energy Retail 2 Ltd,67249,,
Chorley Borough Council,http://statistics.data.gov.uk/id/local-authority/30UE,Central Support Services,1009,CUST - Customer & Digital,Items For Resale,40027,"Equipment, Furniture & Materia",5023,"240L neo HDPE, Grey wheeled bin. Including Chorley logo and RFID chip fitted. , Quantity = 600",01/11/2023,0184852,12540,Revenue,Craemer UK Ltd,64712,,
Chorley Borough Council,http://statistics.data.gov.uk/id/local-authority/30UE,Central Support Services,1009,CUST - Customer & Digital,Items For Resale,40027,"Equipment, Furniture & Materia",5023,"400x Wheels and 200x Axles, for 240-litre wheeled bins",08/11/2023,0187572,830,Revenue,Craemer UK Ltd,64712,,
Chorley Borough Council,http://statistics.data.gov.uk/id/local-authority/30UE,Central Support Services,1009,CUST - Customer & Digital,Items For Resale,40027,"Equipment, Furniture & Materia",5023,"600 X 240L neo HDPE, Green wheeled bin.",08/11/2023,0187744,12540,Revenue,Craemer UK Ltd,64712,,
Chorley Borough Council,http://statistics.data.gov.uk/id/local-authority/30UE,Central Support Services,1009,GROW - Commercial Services,Planned Maintenance,20006,Repairs Maintenance & Alts,5005,Part 1 - Condition Inspection and PPM Schedule at Town Hall,15/11/2023,0188033,3500,Revenue,CRE8 PROJECT SURVEYORS LTD,89612,,
Chorley Borough Council,http://statistics.data.gov.uk/id/local-authority/30UE,Central Support Services,1009,GROW - Commercial Services,Planned Maintenance,20006,Repairs Maintenance & Alts,5005,Part 2 - Condition Inspection and PPM Schedule at Town Hall,15/11/2023,0188033,3500,Revenue,CRE8 PROJECT SURVEYORS LTD,89612,,
Chorley Borough Council,http://statistics.data.gov.uk/id/local-authority/30UE,Central Support Services,1009,EARL - Communities,Core Funding Grants,40133,Grants and Subscriptions,5031,Core Small Funding Grant,15/11/2023,0188131,500,Revenue,Croston Village Festivities Group,59024,,
Chorley Borough Council,http://statistics.data.gov.uk/id/local-authority/30UE,Capital,Capital,GROW - Commercial Services,maintena,03014,Capital Expenditure,Capital,"Supply coffee machine, including water filter, for the cafe at All Seasons Leisure Centre.",01/11/2023,0185565,3750,Capital,D.G Payne Ltd,89531,,
Chorley Borough Council,http://statistics.data.gov.uk/id/local-authority/30UE,Homelessness,1075,EARL - Communities,Grants - Tenant Participation,40142,Grants and Subscriptions,5031,0,15/11/2023,0188212,500,Revenue,Daniel McKeown-Henshall,85588,,
Chorley Borough Council,http://statistics.data.gov.uk/id/local-authority/30UE,Business Support,1095,GROW - Commercial Services,Fixtures & Fittings - Repair/Mtnce,20028,Fixtures and Fittings,5010,"24/7 Maintenance cover for Town Centre Radio System mast and associated equipment. 2023/24 , 950+VAT",08/11/2023,0187492,950,Revenue,DCS 2 Way Radio Ltd,77666,,
Chorley Borough Council,http://statistics.data.gov.uk/id/local-authority/30UE,Service Management & Support,1009,CUST - Customer & Digital,Grounds Maintenance Contractor,20043,Grounds Maintenance Costs,5013,"Remove silt from big lodge, ADDRESS REDACTED",22/11/2023,0188169,1500,Revenue,Derek R Smith,21092,,
Chorley Borough Council,http://statistics.data.gov.uk/id/local-authority/30UE,Central Support Services,1009,GOVN - Policy & Governance,Exhibitions & Special Events,40158,Miscellaneous Expenses,5034,"Check out Chorley Stand at the BTTS 2024, Shell Scheme Corner Site without app - B23",22/11/2023,0188337,1993.5,Revenue,Diversified Business Communications UK,68712,,
Chorley Borough Council,http://statistics.data.gov.uk/id/local-authority/30UE,Capital,Capital,PLAN - Planning & Development,Main Contractor,03007,Capital Expenditure,Capital,King George V Playing Fields pitch maintenance 2023/2024 season. In accordance with quote submitted 28th March 2022 and condition,01/11/2023,0186194,1025,Capital,Duncan Ross Ltd,76803,,
Chorley Borough Council,http://statistics.data.gov.uk/id/local-authority/30UE,Central Support Services,1009,CUST - Customer & Digital,IT Consultancy Fees,40223,Services,5027,9 days @ 400 per day for Info@Work Cloud Migration,29/11/2023,0188439,3600,Revenue,EDM Consulting Ltd,55511,,
Chorley Borough Council,http://statistics.data.gov.uk/id/local-authority/30UE,Planning Policy,1092,PLAN - Planning & Development,Consultants` Fees,40077,Services,5027,Consultancy support in relation to neighbourhood planning pilot study.,08/11/2023,0188034,17567.5,Revenue,Edward Taylor,87071,,
Chorley Borough Council,http://statistics.data.gov.uk/id/local-authority/30UE,Central Support Services,1009,GROW - Commercial Services,General Repairs - Reactive,20004,Repairs Maintenance & Alts,5005,"Re: Ackhurst Lodge Car Park Height Restriction Barrier, , Take down barrier & dispose, straighten damaged post, provide & erect b",29/11/2023,0188309,1995,Revenue,Edwards Wrought Iron Ltd,77654,,
Chorley Borough Council,http://statistics.data.gov.uk/id/local-authority/30UE,Central Support Services,1009,CUST - Customer & Digital,Mobile Voice and Data,40086,Communication and Computing,5028,Mobile Phones,08/11/2023,0188069,9227.12,Revenue,EE - Orange,16486,,
Chorley Borough Council,http://statistics.data.gov.uk/id/local-authority/30UE,Central Support Services,1009,CUST - Customer & Digital,Mobile Voice and Data,40086,Communication and Computing,5028,"98870244, 03 Nov 23",15/11/2023,0188137,9224.33,Revenue,EE - Orange,16486,,
Chorley Borough Council,http://statistics.data.gov.uk/id/local-authority/30UE,Central Support Services,1009,EARL - Communities,Misc Expenses,40200,Miscellaneous Expenses,5034,Speed Radar and display signs - Solar version,01/11/2023,0187481,3101.75,Revenue,Elan City Ltd,88635,,
Chorley Borough Council,http://statistics.data.gov.uk/id/local-authority/30UE,Homelessness,1075,GROW - Commercial Services,Laundry,40042,"Clothing, Uniforms and Laundry",5025,"In respect of Laundry services for period , 01/04/23 - 31/03/2024, For , Cotswold Supported housing, Cotswold Rd , Chorley",15/11/2023,0187843,1294.8,Revenue,Elis UK Ltd,20799,,
Chorley Borough Council,http://statistics.data.gov.uk/id/local-authority/30UE,Homelessness,1075,EARL - Communities,Grants - Tenant Participation,40142,Grants and Subscriptions,5031,0,15/11/2023,0188215,500,Revenue,Emma Tonge,85647,,
Chorley Borough Council,http://statistics.data.gov.uk/id/local-authority/30UE,Central Support Services,1009,GROW - Commercial Services,Planned Maintenance,20006,Repairs Maintenance & Alts,5005,Multiple PPM tests including ladders and cable systems at Town Hall.,01/11/2023,0186077,950,Revenue,Eurosafe Solutions Limited,66302,,
Chorley Borough Council,http://statistics.data.gov.uk/id/local-authority/30UE,Central Support Services,1009,EARL - Communities,Core Funding Grants,40133,Grants and Subscriptions,5031,Core Small Funding Grant,15/11/2023,0188135,500,Revenue,Euxton Women`s Institute,89609,,
Chorley Borough Council,http://statistics.data.gov.uk/id/local-authority/30UE,Tourism,1039,GOVN - Policy & Governance,Professional Fees,40063,Services,5027,On stage entertainment for the Chorley Christmas Light Switch On including fee for NAME REDACTED to switch the lights on.,29/11/2023,0188602,2340,Revenue,Event Chorley,85464,,
Chorley Borough Council,http://statistics.data.gov.uk/id/local-authority/30UE,Service Management & Support,1009,CUST - Customer & Digital,Hire Of Vehicles and Plant,30028,Contrct Hire & Operating Lease,5018,"1 x triple rental per week at 375, 1x front deck rental per week at 295 , Total of 30 weeks rental",08/11/2023,0187706,2680,Revenue,F R Sharrock Ltd,18091,,
Chorley Borough Council,http://statistics.data.gov.uk/id/local-authority/30UE,Central Support Services,1009,CUST - Customer & Digital,Unitary Payment(S),50009,Private Contractors,5042,"Provision of waste and recycling collection services to Chorley Council Sept 2023 to March 2024, (* this is a new purchase order ",29/11/2023,0188558,219311.89,Revenue,FCC Recycling (UK) Ltd,89557,,
Chorley Borough Council,http://statistics.data.gov.uk/id/local-authority/30UE,Central Support Services,1009,EARL - Communities,Other Salaries Costs,14050,Direct Employee Expenses,5001,"Consultancy Fee, October 2023 x 13 days",08/11/2023,0188035,4550,Revenue,Fifty One Management,89628,,
Chorley Borough Council,http://statistics.data.gov.uk/id/local-authority/30UE,Homelessness,1075,EARL - Communities,Grants - Tenant Participation,40142,Grants and Subscriptions,5031,0,15/11/2023,0188208,500,Revenue,Francis Marsden,85643,,
Chorley Borough Council,http://statistics.data.gov.uk/id/local-authority/30UE,Building Control,1090,PLAN - Planning & Development,Professional Fees,40063,Services,5027,", Contractor Fees for NAME REDACTED new contract commencing 25.09.2023 for 6 months",01/11/2023,0187410,3525,Revenue,Fraser Building Management Services Limited,89405,,
Chorley Borough Council,http://statistics.data.gov.uk/id/local-authority/30UE,Building Control,1090,PLAN - Planning & Development,Professional Fees,40063,Services,5027,", Contractor Fees for NAME REDACTED new contract commencing 25.09.2023 for 6 months",15/11/2023,0188199,8000,Revenue,Fraser Building Management Services Limited,89405,,
Chorley Borough Council,http://statistics.data.gov.uk/id/local-authority/30UE,Central Support Services,1009,EARL - Communities,Core Funding Grants,40133,Grants and Subscriptions,5031,Small community Grant,29/11/2023,0188525,500,Revenue,Friends of Rivington Foundation Primary School,89577,,
Chorley Borough Council,http://statistics.data.gov.uk/id/local-authority/30UE,Homelessness,1075,EARL - Communities,Grants - Tenant Participation,40142,Grants and Subscriptions,5031,0,15/11/2023,0188203,500,Revenue,Gary MacFarlane,85416,,
Chorley Borough Council,http://statistics.data.gov.uk/id/local-authority/30UE,Central Support Services,1009,GROW - Commercial Services,Professional Fees,40063,Services,5027,"Terms of Engagement in respect of Ackhurst Road, Chorley and Land to the rear of Moorland Gate Business Park Chorley",01/11/2023,0184410,6500,Revenue,Gerald Eve LLP,76219,,
Chorley Borough Council,http://statistics.data.gov.uk/id/local-authority/30UE,Service Management & Support,1009,CUST - Customer & Digital,Supplies-Grounds Maintenance,40025,"Equipment, Furniture & Materia",5023,"x 4 Schmidt poly wire brushes, x 10 Johnston VT652 brushes",22/11/2023,0188272,834.03,Revenue,Go Plant Fleet Services Ltd,80857,,
Chorley Borough Council,http://statistics.data.gov.uk/id/local-authority/30UE,Central Support Services,1009,CUST - Customer & Digital,Printing,40043,"Printing, Stationery & General",5026,Garden Waste Subscription payments 2023/24,01/11/2023,0186197,1425.57,Revenue,GoCardless,77457,,
Chorley Borough Council,http://statistics.data.gov.uk/id/local-authority/30UE,Corporate Management,1008,GROW - Commercial Services,Publicity - Advertising,40157,Miscellaneous Expenses,5034,Social media for Market Walk Shopping Centre Chorley. October 23 @ 500 per month,01/11/2023,0186076,500,Revenue,Gravity,77837,,
Chorley Borough Council,http://statistics.data.gov.uk/id/local-authority/30UE,Corporate Management,1008,GROW - Commercial Services,Publicity - Advertising,40157,Miscellaneous Expenses,5034,"Social media for Market Walk Shopping Centre Chorley., , November 23 @ 500 per month",15/11/2023,0188201,500,Revenue,Gravity,77837,,
Chorley Borough Council,http://statistics.data.gov.uk/id/local-authority/30UE,Corporate Management,1008,GROW - Commercial Services,Publicity - Advertising,40157,Miscellaneous Expenses,5034,"Social media for Market Walk Shopping Centre Chorley., December 23 @ 500 per month",15/11/2023,0188202,500,Revenue,Gravity,77837,,
Chorley Borough Council,http://statistics.data.gov.uk/id/local-authority/30UE,Open Spaces,1038,CUST - Customer & Digital,Playground Equipment,40008,"Equipment, Furniture & Materia",5023,"Wetpour repair work carried out at Redwing Drive Play Area, Chorley",15/11/2023,0188109,7650,Revenue,Groundwork and Leisure Services Ltd,83841,,
Chorley Borough Council,http://statistics.data.gov.uk/id/local-authority/30UE,Service Management & Support,1009,CUST - Customer & Digital,Supplies-Grounds Maintenance,40025,"Equipment, Furniture & Materia",5023,"PBWH-200-500-855-975-PTD, , WHITE PRINTED SACK 500X855X975 X 200G , Printed Chorley Brough as Previous, Delivered on a Tail Lift ",01/11/2023,0187478,6927.25,Revenue,Harrisons Packaging Ltd,17555,,
Chorley Borough Council,http://statistics.data.gov.uk/id/local-authority/30UE,Homelessness,1075,EARL - Communities,Grants - Tenant Participation,40142,Grants and Subscriptions,5031,0,15/11/2023,0188213,500,Revenue,Helen Millward,87008,,
Chorley Borough Council,http://statistics.data.gov.uk/id/local-authority/30UE,Central Support Services,1009,CUST - Customer & Digital,Computer Equipment-Maintenance,40105,Communication and Computing,5028,"Maglock with fitting kit	2 x 192.00 Slimline Double Maglock	 127.20 Maglock Adjustable lock kit 37.80 Maglock end caps 9.60 2",08/11/2023,0187502,6284.2,Revenue,Hfx Ltd,17164,,
Chorley Borough Council,http://statistics.data.gov.uk/id/local-authority/30UE,Central Support Services,1009,EARL - Communities,Core Funding Grants,40133,Grants and Subscriptions,5031,Core Small Funding Grant,15/11/2023,0188136,500,Revenue,Home-Start Central Lancashire Ltd,20585,,
Chorley Borough Council,http://statistics.data.gov.uk/id/local-authority/30UE,Community Development,1097,EARL - Communities,Core Funding Grants,40133,Grants and Subscriptions,5031,Home-Start Central Lancashire - Delivery of Commissioned Services  2nd payment,22/11/2023,0188368,11000,Revenue,Home-Start Central Lancashire Ltd,20585,,
Chorley Borough Council,http://statistics.data.gov.uk/id/local-authority/30UE,Corporate Management,1008,EARL - Communities,Other Contributions,40145,Grants and Subscriptions,5031,Home-Start Central Lancashire - Household Support Fund Delivery  2nd payment as per agreement,22/11/2023,0188369,15000,Revenue,Home-Start Central Lancashire Ltd,20585,,
Chorley Borough Council,http://statistics.data.gov.uk/id/local-authority/30UE,Central Support Services,1009,GOVN - Policy & Governance,Legal Fees,40171,Miscellaneous Expenses,5034,Interlec Systems Limited -v- Chorley Borough Council for the period 13 June 2023 to 13 September 2023: Professional Fees,08/11/2023,0186207,2591.67,Revenue,Horwich Farrelly Limited,63367,,
Chorley Borough Council,http://statistics.data.gov.uk/id/local-authority/30UE,Central Support Services,1009,CUST - Customer & Digital,Telephones - Other,40085,Communication and Computing,5028,Hybrit SIP charges Oct 23,29/11/2023,0187417,747.5,Revenue,Hybrit LLP,77925,,
Chorley Borough Council,http://statistics.data.gov.uk/id/local-authority/30UE,Culture & Heritage,1036,GOVN - Policy & Governance,Exhibitions & Special Events,40158,Miscellaneous Expenses,5034,A collection of Sci-Fi installations and walkabout acts for Astley Illuminated 10th November 2023,22/11/2023,0188036,1000,Revenue,Hyde Fundraisers,89600,,
Chorley Borough Council,http://statistics.data.gov.uk/id/local-authority/30UE,Corporate Management,1008,GOVN - Policy & Governance,Other Fees,40212,Miscellaneous Expenses,5034,Subsidy for the provision of a meals on wheels service in Chorley from 1 April 2023 to 31 March 2024,08/11/2023,0184646,2948.82,Revenue,I Care GB Ltd,77247,,
Chorley Borough Council,http://statistics.data.gov.uk/id/local-authority/30UE,Corporate Management,1008,GOVN - Policy & Governance,Other Fees,40212,Miscellaneous Expenses,5034,Subsidy for the provision of a meals on wheels service in Chorley from 1 April 2023 to 31 March 2024,08/11/2023,0185937,3056.2,Revenue,I Care GB Ltd,77247,,
Chorley Borough Council,http://statistics.data.gov.uk/id/local-authority/30UE,Central Support Services,1009,CUST - Customer & Digital,Computer Software-Purchase,40100,Communication and Computing,5028,"Installation of upgrade for Eros, PVC and WebEros",15/11/2023,0187686,1000,Revenue,IDOX Software Limited,17542,,
Chorley Borough Council,http://statistics.data.gov.uk/id/local-authority/30UE,Central Support Services,1009,CUST - Customer & Digital,Printing,40043,"Printing, Stationery & General",5026,Hybrid Mail,01/11/2023,0187579,1018.8,Revenue,Imail Comms Limited,89533,,
Chorley Borough Council,http://statistics.data.gov.uk/id/local-authority/30UE,Central Support Services,1009,CUST - Customer & Digital,Printing,40043,"Printing, Stationery & General",5026,Hybrid Mail,01/11/2023,0187580,1317.31,Revenue,Imail Comms Limited,89533,,
Chorley Borough Council,http://statistics.data.gov.uk/id/local-authority/30UE,Central Support Services,1009,CUST - Customer & Digital,Printing,40043,"Printing, Stationery & General",5026,Hybrid Mail,01/11/2023,0187582,2251.14,Revenue,Imail Comms Limited,89533,,
Chorley Borough Council,http://statistics.data.gov.uk/id/local-authority/30UE,Central Support Services,1009,CUST - Customer & Digital,Printing,40043,"Printing, Stationery & General",5026,Hybrid Mail,01/11/2023,0187597,850.87,Revenue,Imail Comms Limited,89533,,
Chorley Borough Council,http://statistics.data.gov.uk/id/local-authority/30UE,Central Support Services,1009,CUST - Customer & Digital,Printing,40043,"Printing, Stationery & General",5026,Hybrid Mail,01/11/2023,0187601,1420.94,Revenue,Imail Comms Limited,89533,,
Chorley Borough Council,http://statistics.data.gov.uk/id/local-authority/30UE,Central Support Services,1009,CUST - Customer & Digital,Printing,40043,"Printing, Stationery & General",5026,Hybrid Mail,08/11/2023,0187716,965.28,Revenue,Imail Comms Limited,89533,,
Chorley Borough Council,http://statistics.data.gov.uk/id/local-authority/30UE,Central Support Services,1009,CUST - Customer & Digital,Printing,40043,"Printing, Stationery & General",5026,Hybrid Mail,08/11/2023,0187717,936.4,Revenue,Imail Comms Limited,89533,,
Chorley Borough Council,http://statistics.data.gov.uk/id/local-authority/30UE,Central Support Services,1009,CUST - Customer & Digital,Printing,40043,"Printing, Stationery & General",5026,Hybrid Mail,08/11/2023,0188049,662.59,Revenue,Imail Comms Limited,89533,,
Chorley Borough Council,http://statistics.data.gov.uk/id/local-authority/30UE,Central Support Services,1009,CUST - Customer & Digital,Printing,40043,"Printing, Stationery & General",5026,Hybrid Mail,08/11/2023,0188051,1097.45,Revenue,Imail Comms Limited,89533,,
Chorley Borough Council,http://statistics.data.gov.uk/id/local-authority/30UE,Central Support Services,1009,CUST - Customer & Digital,Training Course Fees,17010,Indirect Employee Expenses,5002,"Council Tax Masterclass, 4 attendees (25% discount on 1 attendee)",01/11/2023,0183955,1125,Revenue,IRRV Services Ltd,16620,,
Chorley Borough Council,http://statistics.data.gov.uk/id/local-authority/30UE,Central Support Services,1009,EARL - Communities,Misc Expenses,40200,Miscellaneous Expenses,5034,Raise Purchase Order for NAME REDACTED driver hire and waste disposal for skip day at ASC Timber Merchants Chorl,01/11/2023,0187476,870.5,Revenue,J Dickinson & Son (Horwich)Ltd,17230,,
Chorley Borough Council,http://statistics.data.gov.uk/id/local-authority/30UE,Homelessness,1075,EARL - Communities,Grants - Tenant Participation,40142,Grants and Subscriptions,5031,0,15/11/2023,0188209,500,Revenue,Jason O`Flaherty,85502,,
Chorley Borough Council,http://statistics.data.gov.uk/id/local-authority/30UE,Development Control,1091,PLAN - Planning & Development,Professional Fees,40063,Services,5027,Flood risk planning reviews for development sites at Babylon Lane and Tincklers Lane Chorley,08/11/2023,0187997,3997,Revenue,JBA Consulting,77859,,
Chorley Borough Council,http://statistics.data.gov.uk/id/local-authority/30UE,Service Management & Support,1009,CUST - Customer & Digital,Vehicles and Plant Operating Lease,30029,Contrct Hire & Operating Lease,5018,Lease extension for Nissan NV200 Panel van VIN REDACTED for the period 27/01/23 - 27/09/23,08/11/2023,0188037,560.88,Revenue,Jcb Finance Ltd,17684,,
Chorley Borough Council,http://statistics.data.gov.uk/id/local-authority/30UE,Service Management & Support,1009,CUST - Customer & Digital,Vehicles and Plant Operating Lease,30029,Contrct Hire & Operating Lease,5018,Lease extension for Nissan NV200 Panel van VIN REDACTED for the period 27/01/23 - 27/09/23,08/11/2023,0188037,560.88,Revenue,Jcb Finance Ltd,17684,,
Chorley Borough Council,http://statistics.data.gov.uk/id/local-authority/30UE,Service Management & Support,1009,CUST - Customer & Digital,Vehicles and Plant Operating Lease,30029,Contrct Hire & Operating Lease,5018,Lease extension for Nissan NV200 Panel van VIN REDACTED for the period 27/01/23 - 27/09/23,08/11/2023,0188037,560.88,Revenue,Jcb Finance Ltd,17684,,
Chorley Borough Council,http://statistics.data.gov.uk/id/local-authority/30UE,Service Management & Support,1009,CUST - Customer & Digital,Vehicles and Plant Operating Lease,30029,Contrct Hire & Operating Lease,5018,Lease extension for Nissan NV200 Panel van VIN REDACTED for the period 27/01/23 - 27/09/23,08/11/2023,0188037,560.88,Revenue,Jcb Finance Ltd,17684,,
Chorley Borough Council,http://statistics.data.gov.uk/id/local-authority/30UE,Service Management & Support,1009,CUST - Customer & Digital,Vehicles and Plant Operating Lease,30029,Contrct Hire & Operating Lease,5018,Lease extension for Nissan NV200 Panel van VIN REDACTED for the period 27/01/23 - 27/09/23,08/11/2023,0188037,560.88,Revenue,Jcb Finance Ltd,17684,,
Chorley Borough Council,http://statistics.data.gov.uk/id/local-authority/30UE,Service Management & Support,1009,CUST - Customer & Digital,Vehicles and Plant Operating Lease,30029,Contrct Hire & Operating Lease,5018,Rental of John Deere PJ63 VCW 26/08/23 - 25/08/24,08/11/2023,0188039,2795.36,Revenue,Jcb Finance Ltd,17684,,
Chorley Borough Council,http://statistics.data.gov.uk/id/local-authority/30UE,Service Management & Support,1009,CUST - Customer & Digital,Vehicles and Plant Operating Lease,30029,Contrct Hire & Operating Lease,5018,Rental of Kubota PO14 BFX from 26/08/23 - 25/08/24,08/11/2023,0188039,3791.49,Revenue,Jcb Finance Ltd,17684,,
Chorley Borough Council,http://statistics.data.gov.uk/id/local-authority/30UE,Central Support Services,1009,EARL - Communities,Core Funding Grants,40133,Grants and Subscriptions,5031,JSK Dance small community grant,29/11/2023,0188526,500,Revenue,Johanne Keay,77453,,
Chorley Borough Council,http://statistics.data.gov.uk/id/local-authority/30UE,Service Management & Support,1009,CUST - Customer & Digital,Supplies-Grounds Maintenance,40025,"Equipment, Furniture & Materia",5023,Supply a 40ft Christmas Tree 2023,29/11/2023,0188457,2720,Revenue,John H Mayor & Sons Ltd,16635,,
Chorley Borough Council,http://statistics.data.gov.uk/id/local-authority/30UE,Homelessness,1075,EARL - Communities,Grants - Tenant Participation,40142,Grants and Subscriptions,5031,0,15/11/2023,0188204,500,Revenue,Joyce Harasimiuk,85418,,
Chorley Borough Council,http://statistics.data.gov.uk/id/local-authority/30UE,Capital,Capital,GROW - Commercial Services,Consultants Fees,03025,Capital Expenditure,Capital,"Alker Lane Development:-, Final drawdown for original commission due to a closed PO of 7,000, Drawdown for variation to original",15/11/2023,0187737,9100,Capital,JRB Environmental Design Limited,80610,,
Chorley Borough Council,http://statistics.data.gov.uk/id/local-authority/30UE,Capital,Capital,EARL - Communities,Grants,03002,Capital Expenditure,Capital,"22/00129/CAG, NAME REDACTED, ADDRESS REDACTED",22/11/2023,0188269,4950,Capital,K Berry Ltd,16421,,
Chorley Borough Council,http://statistics.data.gov.uk/id/local-authority/30UE,Capital,Capital,EARL - Communities,Grants,03002,Capital Expenditure,Capital,"22/00175/CAG, NAME REDACTED, ADDRESS REDACTED",22/11/2023,0188270,3374,Capital,K Berry Ltd,16421,,
Chorley Borough Council,http://statistics.data.gov.uk/id/local-authority/30UE,Capital,Capital,EARL - Communities,Grants,03002,Capital Expenditure,Capital,23/00008/CAG,22/11/2023,0188397,2862,Capital,K Berry Ltd,16421,,
Chorley Borough Council,http://statistics.data.gov.uk/id/local-authority/30UE,Capital,Capital,EARL - Communities,Grants,03002,Capital Expenditure,Capital,23/00002/CAG,22/11/2023,0188398,1377,Capital,K Berry Ltd,16421,,
Chorley Borough Council,http://statistics.data.gov.uk/id/local-authority/30UE,Control Accounts,Control,GROW - Commercial Services,Manual Control Account,00001,Balance Sheet,Balance,,22/11/2023,0188401,586.86,Revenue,Kenneth Smyth,84175,,
Chorley Borough Council,http://statistics.data.gov.uk/id/local-authority/30UE,Economic Development,1096,GROW - Commercial Services,Refuse Collection,20037,Cleaning and Domestic Supplies,5012,"Market Walk/Market Walk Extension/Markets/Calico Lounge/Reel Cinema Waste Removal 01.04.2023 - 31.03.2024:, , Market Walk YARD 1 ",15/11/2023,0188024,1989,Revenue,Kenny Waste Management Ltd,88641,,
Chorley Borough Council,http://statistics.data.gov.uk/id/local-authority/30UE,Capital,Capital,GOVN - Policy & Governance,Other Contractor,03012,Capital Expenditure,Capital,Deposit on exchange,03/11/2023,0186102,177500,Capital,Kerax Limited,89632,,
Chorley Borough Council,http://statistics.data.gov.uk/id/local-authority/30UE,Homelessness,1075,EARL - Communities,Grants - Tenant Participation,40142,Grants and Subscriptions,5031,0,15/11/2023,0188211,500,Revenue,Kevin Eardley,85644,,
Chorley Borough Council,http://statistics.data.gov.uk/id/local-authority/30UE,Corporate Management,1008,EARL - Communities,Other Contributions,40145,Grants and Subscriptions,5031,Key Unlocking Futures - Household Support Fund Delivery  2nd payment as per agreement,29/11/2023,0188464,10000,Revenue,Key Unlocking Futures Limited,61252,,
Chorley Borough Council,http://statistics.data.gov.uk/id/local-authority/30UE,Central Support Services,1009,GOVN - Policy & Governance,Publicity - Advertising,40157,Miscellaneous Expenses,5034,Check out Chorley advertisement to appear in the Kingfisher Media `This is Liverpool` guide 2023,08/11/2023,0187740,750,Revenue,Kingfisher Visitor Guides,78152,,
Chorley Borough Council,http://statistics.data.gov.uk/id/local-authority/30UE,Central Support Services,1009,GOVN - Policy & Governance,Car Leasing Payment,14100,Direct Employee Expenses,5001,"Car Lease Quote: 2155804098, Driver: NAME REDACTED",15/11/2023,0185058,2662.03,Revenue,Kinto UK Limited,85626,,
Chorley Borough Council,http://statistics.data.gov.uk/id/local-authority/30UE,Tourism,1039,GOVN - Policy & Governance,Professional Fees,40063,Services,5027,Astley Park Bonfire and Fireworks - Reduced noise musical display as performed last season on the 5th November 2023,22/11/2023,0188230,12000,Revenue,Komodo Fireworks Ltd,72809,,
Chorley Borough Council,http://statistics.data.gov.uk/id/local-authority/30UE,Control Accounts,Control,GOVN - Policy & Governance,General Balances,00100,Balance Sheet,Balance,Labour Councillors Association - Oct 23 Monthly Deductions from Payroll,15/11/2023,0188074,1882.62,Revenue,Labour Councillors Association,17577,,
Chorley Borough Council,http://statistics.data.gov.uk/id/local-authority/30UE,Public Transport,1067,PLAN - Planning & Development,Other Fees,40212,Miscellaneous Expenses,5034,"Chorley interchange Newsagent Kiosk Rent and Cafe Rents for the period 2020/2021,2021/2022,2022/2023, & 2023/24",15/11/2023,0185019,25875,Revenue,Lancashire County Council,17758,,
Chorley Borough Council,http://statistics.data.gov.uk/id/local-authority/30UE,Precepts and Collection Fund,Precepts,GOVN - Policy & Governance,LCC Precept,02009,Precepts & Collection Fund,Precept,LCC Council Tax Precept,03/11/2023,0187384,5971419,Revenue,Lancashire County Council,18386,,
Chorley Borough Council,http://statistics.data.gov.uk/id/local-authority/30UE,Collection Fund Revenue Accoun,0,GOVN - Policy & Governance,NNDR County Share,02036,Precepts & Collection Fund,Precept,LCC Business Rates Precept,03/11/2023,0187384,244995,Revenue,Lancashire County Council,18386,,
Chorley Borough Council,http://statistics.data.gov.uk/id/local-authority/30UE,Tourism,1039,GOVN - Policy & Governance,Misc Expenses,40200,Miscellaneous Expenses,5034,Road Closures - Chorley 10k Sunday 7 May 2023,01/11/2023,0187435,1982.3,Revenue,Lancashire County Council,20027,,
Chorley Borough Council,http://statistics.data.gov.uk/id/local-authority/30UE,Culture & Heritage,1036,GOVN - Policy & Governance,Conservation Of Exhibits,40059,Services,5027,"Technical museum work to return artworks to the main store. , To move artwork from Art Gallery and hang on racking in new space.,",29/11/2023,0188138,849.4,Revenue,Lancashire County Council,17758,,
Chorley Borough Council,http://statistics.data.gov.uk/id/local-authority/30UE,Capital,Capital,EARL - Communities,Grants,03002,Capital Expenditure,Capital,"23/00214/CAG, NAME REDACTED, ADDRESS REDACTED",29/11/2023,0188271,2844,Capital,Lancashire County Council,17758,,
Chorley Borough Council,http://statistics.data.gov.uk/id/local-authority/30UE,Corporate Management,1008,GOVN - Policy & Governance,Other Contributions,40145,Grants and Subscriptions,5031,Shared bus services covering the period from April 2022 to March 2023,29/11/2023,0188317,25414.23,Revenue,Lancashire County Council,17758,,
Chorley Borough Council,http://statistics.data.gov.uk/id/local-authority/30UE,Corporate Management,1008,EARL - Communities,Other Contributions,40145,Grants and Subscriptions,5031,Additional Request supermarket Vouchers LCC,29/11/2023,0188463,5000,Revenue,Lancashire County Council,17758,,
Chorley Borough Council,http://statistics.data.gov.uk/id/local-authority/30UE,Capital,Capital,EARL - Communities,Grants,03002,Capital Expenditure,Capital,23/00085/CAG,29/11/2023,0188471,1476,Capital,Lancashire County Council,17758,,
Chorley Borough Council,http://statistics.data.gov.uk/id/local-authority/30UE,Tourism,1039,CUST - Customer & Digital,Supplies-Grounds Maintenance,40025,"Equipment, Furniture & Materia",5023,"Supply 10 temporary traffic signs for the one way system, Chancery Road (5200260310)",22/11/2023,0188329,1385.42,Revenue,Lancashire County Council Highways,18845,,
Chorley Borough Council,http://statistics.data.gov.uk/id/local-authority/30UE,Central Support Services,1009,CUST - Customer & Digital,Clinical Waste Collection,50007,Private Contractors,5042,Domestic clinical waste collections 2023/24,15/11/2023,0187943,2112.19,Revenue,Lancashire Environmental Services,82309,,
Chorley Borough Council,http://statistics.data.gov.uk/id/local-authority/30UE,Central Support Services,1009,GROW - Commercial Services,General Repairs - Reactive,20004,Repairs Maintenance & Alts,5005,"Reactive Gas, Air Conditioning and Plumbing Repair Works @ Town Hall",01/11/2023,0186039,1637.33,Revenue,Lancashire Gas Services Ltd,78192,,
Chorley Borough Council,http://statistics.data.gov.uk/id/local-authority/30UE,Central Support Services,1009,GROW - Commercial Services,General Repairs - Reactive,20004,Repairs Maintenance & Alts,5005,"Reactive Gas, Air Conditioning and Plumbing Repair Works @ Astley Hall & Buildings",08/11/2023,0187658,501.3,Revenue,Lancashire Gas Services Ltd,78192,,
Chorley Borough Council,http://statistics.data.gov.uk/id/local-authority/30UE,Business Support,1095,GROW - Commercial Services,Planned Maintenance,20006,Repairs Maintenance & Alts,5005,"Planned Gas, Air Conditioning and Plumbing Maintenance and Remedial Works also includes insurance inspector remedials @ Primrose ",15/11/2023,0187685,1642.11,Revenue,Lancashire Gas Services Ltd,78192,,
Chorley Borough Council,http://statistics.data.gov.uk/id/local-authority/30UE,Central Support Services,1009,GROW - Commercial Services,General Repairs - Reactive,20004,Repairs Maintenance & Alts,5005,"Reactive Gas, Air Conditioning and Plumbing Repair Works @ Town Hall",15/11/2023,0187914,1932.75,Revenue,Lancashire Gas Services Ltd,78192,,
Chorley Borough Council,http://statistics.data.gov.uk/id/local-authority/30UE,Business Support,1095,GROW - Commercial Services,General Repairs - Reactive,20004,Repairs Maintenance & Alts,5005,"Reactive Gas, Air Conditioning and Plumbing Repair Works @ Primrose Gardens",22/11/2023,0188335,1129.01,Revenue,Lancashire Gas Services Ltd,78192,,
Chorley Borough Council,http://statistics.data.gov.uk/id/local-authority/30UE,Central Support Services,1009,GROW - Commercial Services,General Repairs - Reactive,20004,Repairs Maintenance & Alts,5005,"Reactive Gas, Air Conditioning and Plumbing Repair Works @ CBC Housing",29/11/2023,0188371,2368.2,Revenue,Lancashire Gas Services Ltd,78192,,
Chorley Borough Council,http://statistics.data.gov.uk/id/local-authority/30UE,Central Support Services,1009,GROW - Commercial Services,General Repairs - Reactive,20004,Repairs Maintenance & Alts,5005,"Reactive Gas, Air Conditioning and Plumbing Repair Works @ CBC Housing",29/11/2023,0188377,2038.7,Revenue,Lancashire Gas Services Ltd,78192,,
Chorley Borough Council,http://statistics.data.gov.uk/id/local-authority/30UE,Central Support Services,1009,GROW - Commercial Services,General Repairs - Reactive,20004,Repairs Maintenance & Alts,5005,"Reactive Gas, Air Conditioning and Plumbing Repair Works @ Cotswold House",29/11/2023,0188383,2219.1,Revenue,Lancashire Gas Services Ltd,78192,,
Chorley Borough Council,http://statistics.data.gov.uk/id/local-authority/30UE,Central Support Services,1009,GROW - Commercial Services,General Repairs - Reactive,20004,Repairs Maintenance & Alts,5005,"Reactive Gas, Air Conditioning and Plumbing Repair Works @ Union Street",29/11/2023,0188385,1419,Revenue,Lancashire Gas Services Ltd,78192,,
Chorley Borough Council,http://statistics.data.gov.uk/id/local-authority/30UE,Corporate Management,1008,GROW - Commercial Services,Promotional Expenses,40159,Miscellaneous Expenses,5034,To provide entertainment for the Market Walk Shopping Centre Fun Thursday Event on 26th October 2023 10am - 4pm Lancashire Ice Qu,08/11/2023,0185242,550,Revenue,Lancashire Ice Queen Parties,88427,,
Chorley Borough Council,http://statistics.data.gov.uk/id/local-authority/30UE,Central Support Services,1009,EARL - Communities,Core Funding Grants,40133,Grants and Subscriptions,5031,Core Small Funding Grant,15/11/2023,0188121,500,Revenue,Lancashire TAAG,57169,,
Chorley Borough Council,http://statistics.data.gov.uk/id/local-authority/30UE,Service Management & Support,1009,CUST - Customer & Digital,Vehicles and Plant Maintenance,30045,Direct Transport Costs,5016,"As per CUSTOMER JOB NO. 7752, Description, VIN REDACTED - Ad Blue Fault, Check and fit new supply unit, prime up system - clean lines,",01/11/2023,0187654,1253.25,Revenue,Lancashire Waste Services,78129,,
Chorley Borough Council,http://statistics.data.gov.uk/id/local-authority/30UE,Precepts and Collection Fund,Precepts,GOVN - Policy & Governance,LCFA Precept,02011,Precepts & Collection Fund,Precept,LCFA Council Tax Precept,03/11/2023,0187383,312066,Revenue,Lancs Combined Fire Authority,17768,,
Chorley Borough Council,http://statistics.data.gov.uk/id/local-authority/30UE,Collection Fund Revenue Accoun,0,GOVN - Policy & Governance,NNDR Fire Share,02037,Precepts & Collection Fund,Precept,LCFA Business Rates Precept,03/11/2023,0187383,27221,Revenue,Lancs Combined Fire Authority,17768,,
Chorley Borough Council,http://statistics.data.gov.uk/id/local-authority/30UE,Tourism,1039,GOVN - Policy & Governance,Tools & Equipment - Hire,40004,"Equipment, Furniture & Materia",5023,Provision of Land Train Hire 9th 10th 16th 17th December,01/11/2023,0187741,7345,Revenue,Land Train Hire Nationwide,89653,,
Chorley Borough Council,http://statistics.data.gov.uk/id/local-authority/30UE,Corporate Management,1008,GOVN - Policy & Governance,Corp Training Organisational Development,17006,Indirect Employee Expenses,5002,Learning Pool Contract Year 4 23/24,01/11/2023,0187519,23400,Revenue,Learning Pool Limited,76161,,
Chorley Borough Council,http://statistics.data.gov.uk/id/local-authority/30UE,Central Support Services,1009,EARL - Communities,Misc Expenses,40200,Miscellaneous Expenses,5034,Large community grant,01/11/2023,0178766,2000,Revenue,Leyland & Chorley Hockey Club,57439,,
Chorley Borough Council,http://statistics.data.gov.uk/id/local-authority/30UE,Central Support Services,1009,CUST - Customer & Digital,Professional Fees,14011,Direct Employee Expenses,5001,Empty Homes Review Aug 23,15/11/2023,0188197,7066.97,Revenue,Liberata (Capacity Grid),67989,,
Chorley Borough Council,http://statistics.data.gov.uk/id/local-authority/30UE,Central Support Services,1009,CUST - Customer & Digital,Professional Fees,14011,Direct Employee Expenses,5001,Empty Homes Review Sept-Oct 23,29/11/2023,0188548,7915.9,Revenue,Liberata (Capacity Grid),67989,,
Chorley Borough Council,http://statistics.data.gov.uk/id/local-authority/30UE,Regulatory Services,1048,PLAN - Planning & Development,Professional Fees,14011,Direct Employee Expenses,5001,DVLA Drivier Management Fees and Electoric Checks for Taxi Drivers April 2023 - Ongoing,15/11/2023,0187868,541.14,Revenue,Licence Bureau Limited,71233,,
Chorley Borough Council,http://statistics.data.gov.uk/id/local-authority/30UE,Central Support Services,1009,EARL - Communities,Core Funding Grants,40133,Grants and Subscriptions,5031,Core Small Funding Grant,15/11/2023,0188125,500,Revenue,Living Waters Storehouse,60925,,
Chorley Borough Council,http://statistics.data.gov.uk/id/local-authority/30UE,Corporate Management,1008,EARL - Communities,Other Contributions,40145,Grants and Subscriptions,5031,Living Waters Storehouse - Household Support Fund Delivery  2nd payment as per agreement,29/11/2023,0188441,8750,Revenue,Living Waters Storehouse,60925,,
Chorley Borough Council,http://statistics.data.gov.uk/id/local-authority/30UE,Community Development,1097,EARL - Communities,Core Funding Grants,40133,Grants and Subscriptions,5031,Living Waters Storehouse - Delivery of Commissioned Services  2nd payment,29/11/2023,0188465,3750,Revenue,Living Waters Storehouse,60925,,
Chorley Borough Council,http://statistics.data.gov.uk/id/local-authority/30UE,Capital,Capital,GROW - Commercial Services,Other Contractor,03012,Capital Expenditure,Capital,Environmental Audit - Ackhurst Road site (Kerax),15/11/2023,0187688,975,Capital,LK Consult Ltd,22191,,
Chorley Borough Council,http://statistics.data.gov.uk/id/local-authority/30UE,Capital,Capital,GROW - Commercial Services,Consultants Fees,03025,Capital Expenditure,Capital,"Bengal Street Works, , 1.	Invasive Plant Survey - 450 ex VAT, 2.	Provision of Invasive Plant Species Management - 550 ex VAT, 3",15/11/2023,0187689,2800,Capital,LK Consult Ltd,22191,,
Chorley Borough Council,http://statistics.data.gov.uk/id/local-authority/30UE,Parking Services,1066,GROW - Commercial Services,Salting & Gritting,20059,Grounds Maintenance Costs,5013,"To supply the following:, , 1 x pallet of salt free non-corrosive de-icer , Price: 27.40 per 25kg, (1 pallet 40x25kg bags) , , I",29/11/2023,0188308,1111,Revenue,Maclin Sourcing Solutions Ltd,78066,,
Chorley Borough Council,http://statistics.data.gov.uk/id/local-authority/30UE,Tourism,1039,GOVN - Policy & Governance,Publicity - Advertising,40157,Miscellaneous Expenses,5034,CFS,29/11/2023,0187929,650,Revenue,Marketing Lancashire,65208,,
Chorley Borough Council,http://statistics.data.gov.uk/id/local-authority/30UE,Service Management & Support,1009,CUST - Customer & Digital,Supplies-Grounds Maintenance,40025,"Equipment, Furniture & Materia",5023,Suply 1 ton of grade 1 top soil. Deliver to Bengal St,01/11/2023,0186066,505,Revenue,Mc & Ma Stewart (Haulage Ltd),16627,,
Chorley Borough Council,http://statistics.data.gov.uk/id/local-authority/30UE,Business Support,1095,GOVN - Policy & Governance,UKSPF Funded Business Events,40258,Miscellaneous Expenses,5034,Undertake work to develop an economic evidence base for Chorley to support both the Economic Strategy and Local Plan development ,08/11/2023,0187695,12499,Revenue,Metro Dynamics Ltd,89624,,
Chorley Borough Council,http://statistics.data.gov.uk/id/local-authority/30UE,Business Support,1095,GOVN - Policy & Governance,UKSPF Funded Business Events,40258,Miscellaneous Expenses,5034,Undertake work to develop an economic evidence base for Chorley to support both the Economic Strategy and Local Plan development ,29/11/2023,0188528,12500,Revenue,Metro Dynamics Ltd,89624,,
Chorley Borough Council,http://statistics.data.gov.uk/id/local-authority/30UE,Central Support Services,1009,CUST - Customer & Digital,Computer Software-Maintenance,40107,Communication and Computing,5028,ad integration,29/11/2023,0188259,2565,Revenue,MHR International UK Ltd,84982,,
Chorley Borough Council,http://statistics.data.gov.uk/id/local-authority/30UE,Central Support Services,1009,CUST - Customer & Digital,Computer Software-Maintenance,40107,Communication and Computing,5028,ad integration,29/11/2023,0188285,1026,Revenue,MHR International UK Ltd,84982,,
Chorley Borough Council,http://statistics.data.gov.uk/id/local-authority/30UE,Central Support Services,1009,CUST - Customer & Digital,Computer Software-Maintenance,40107,Communication and Computing,5028,ad integration,29/11/2023,0188286,513,Revenue,MHR International UK Ltd,84982,,
Chorley Borough Council,http://statistics.data.gov.uk/id/local-authority/30UE,Central Support Services,1009,CUST - Customer & Digital,Computer Software-Maintenance,40107,Communication and Computing,5028,ad integration,29/11/2023,0188287,1026,Revenue,MHR International UK Ltd,84982,,
Chorley Borough Council,http://statistics.data.gov.uk/id/local-authority/30UE,Business Support,1095,GROW - Commercial Services,General Repairs - Reactive,20004,Repairs Maintenance & Alts,5005,"Market Walk Reactive , Drainage and Groundworks Repair Works",15/11/2023,0188061,560,Revenue,Michael Roe,78294,,
Chorley Borough Council,http://statistics.data.gov.uk/id/local-authority/30UE,Collection Fund Revenue Accoun,0,GOVN - Policy & Governance,NNDR Central Share,02034,Precepts & Collection Fund,Precept,Central Share BR,03/11/2023,0187382,1062692,Revenue,Ministry of Housing Communities & Local Government,16280,,
Chorley Borough Council,http://statistics.data.gov.uk/id/local-authority/30UE,Collection Fund Revenue Accoun,0,GOVN - Policy & Governance,NNDR Central Share,02034,Precepts & Collection Fund,Precept,Deficit Collection Fund,03/11/2023,0187382,26175,Revenue,Ministry of Housing Communities & Local Government,16280,,
Chorley Borough Council,http://statistics.data.gov.uk/id/local-authority/30UE,Collection Fund Revenue Accoun,0,GOVN - Policy & Governance,NNDR Central Share,02034,Precepts & Collection Fund,Precept,Central Share BR,03/11/2023,0187447,1062692,Revenue,Ministry of Housing Communities & Local Government,16280,,
Chorley Borough Council,http://statistics.data.gov.uk/id/local-authority/30UE,Collection Fund Revenue Accoun,0,GOVN - Policy & Governance,NNDR Central Share,02034,Precepts & Collection Fund,Precept,Deficit Collection Fund,03/11/2023,0187447,26174,Revenue,Ministry of Housing Communities & Local Government,16280,,
Chorley Borough Council,http://statistics.data.gov.uk/id/local-authority/30UE,Collection Fund Revenue Accoun,0,GOVN - Policy & Governance,NNDR Central Share,02034,Precepts & Collection Fund,Precept,Central Share BR,03/11/2023,0187451,1062693,Revenue,Ministry of Housing Communities & Local Government,16280,,
Chorley Borough Council,http://statistics.data.gov.uk/id/local-authority/30UE,Collection Fund Revenue Accoun,0,GOVN - Policy & Governance,NNDR Central Share,02034,Precepts & Collection Fund,Precept,Deficit Collection Fund,03/11/2023,0187451,26176,Revenue,Ministry of Housing Communities & Local Government,16280,,
Chorley Borough Council,http://statistics.data.gov.uk/id/local-authority/30UE,Corporate Management,1008,GOVN - Policy & Governance,Miscellaneous Government Grants,60241,Government Grants,5062,Flood recovery grant overpayment,01/11/2023,0187441,10693,Revenue,"Ministry of Housing,Communities&Local Government",19439,,
Chorley Borough Council,http://statistics.data.gov.uk/id/local-authority/30UE,Capital,Capital,EARL - Communities,Grants,03002,Capital Expenditure,Capital,"23/00047/CAG, ADDRESS REDACTED",15/11/2023,0188119,500,Capital,Mint Northwest Ltd,65607,,
Chorley Borough Council,http://statistics.data.gov.uk/id/local-authority/30UE,Central Support Services,1009,EARL - Communities,Misc Expenses,40200,Miscellaneous Expenses,5034,Delivery of Cookery sessions for Buttermere and Coppull Neighbourhood Priority,22/11/2023,0187712,1000,Revenue,Miss AR Phillips TA Woodchats Coffee Shop,83549,,
Chorley Borough Council,http://statistics.data.gov.uk/id/local-authority/30UE,Central Support Services,1009,EARL - Communities,Misc Expenses,40200,Miscellaneous Expenses,5034,Delivery of Food and cookery demonstrations at Charnock Richard Better Living Event on 18th November,22/11/2023,0187712,500,Revenue,Miss AR Phillips TA Woodchats Coffee Shop,83549,,
Chorley Borough Council,http://statistics.data.gov.uk/id/local-authority/30UE,Private Sector HSG Renewal,1073,EARL - Communities,External Contractor,40198,Miscellaneous Expenses,5034,Ref 200968,01/11/2023,0187528,860,Revenue,Mobility Care Services,70841,,
Chorley Borough Council,http://statistics.data.gov.uk/id/local-authority/30UE,Private Sector HSG Renewal,1073,EARL - Communities,External Contractor,40198,Miscellaneous Expenses,5034,Ref 200991,01/11/2023,0187528,580,Revenue,Mobility Care Services,70841,,
Chorley Borough Council,http://statistics.data.gov.uk/id/local-authority/30UE,Private Sector HSG Renewal,1073,EARL - Communities,External Contractor,40198,Miscellaneous Expenses,5034,Ref 201052,01/11/2023,0187528,990,Revenue,Mobility Care Services,70841,,
Chorley Borough Council,http://statistics.data.gov.uk/id/local-authority/30UE,Capital,Capital,PLAN - Planning & Development,Main Contractor,03007,Capital Expenditure,Capital,Footpath and Drainage works at Orchard Drive - based on quote submitted 25th June and email exhnage detailing ommissions on 30th ,29/11/2023,0188486,11456,Capital,Mr Andy Hart,72236,,
Chorley Borough Council,http://statistics.data.gov.uk/id/local-authority/30UE,Development Control,1091,PLAN - Planning & Development,Statutory Notices,40160,Miscellaneous Expenses,5034,Planning Public Notices to appear in the Chorley Guardian April 2023 to March 2024,15/11/2023,0187633,744.6,Revenue,National World Publishing Limited,20072,,
Chorley Borough Council,http://statistics.data.gov.uk/id/local-authority/30UE,Central Support Services,1009,CUST - Customer & Digital,IT Software - Annual Licences,40101,Communication and Computing,5028,Support & Maintenance Services for NEC Document Management:- eMail Connect Core 400 x All Customers GDPR Connect COLD GraphicalWo,08/11/2023,0183056,8994,Revenue,NEC Software Solutions UK Ltd,18285,,
Chorley Borough Council,http://statistics.data.gov.uk/id/local-authority/30UE,Central Support Services,1009,CUST - Customer & Digital,Computer Software-Additional,40102,Communication and Computing,5028,Additional NEC Cloud Storage,29/11/2023,0188550,1481.94,Revenue,NEC Software Solutions UK Ltd,18285,,
Chorley Borough Council,http://statistics.data.gov.uk/id/local-authority/30UE,Homelessness,1075,EARL - Communities,Grants - Tenant Participation,40142,Grants and Subscriptions,5031,0,15/11/2023,0188218,500,Revenue,Nicholas J Roden,87102,,
Chorley Borough Council,http://statistics.data.gov.uk/id/local-authority/30UE,Business Support,1095,GOVN - Policy & Governance,Grants To Other Organisations,40127,Grants and Subscriptions,5031,Choose Chorley Relocation Grant,15/11/2023,0187726,10000,Revenue,Nick Brake,89626,,
Chorley Borough Council,http://statistics.data.gov.uk/id/local-authority/30UE,Tourism,1039,GOVN - Policy & Governance,Professional Fees,40063,Services,5027,Chorley Live 2023 event management,29/11/2023,0188064,4000,Revenue,Nigel Stewart,63086,,
Chorley Borough Council,http://statistics.data.gov.uk/id/local-authority/30UE,Business Support,1095,GOVN - Policy & Governance,Grants To Other Organisations,40127,Grants and Subscriptions,5031,grant 184 eaves lane,01/11/2023,0187621,890.4,Revenue,NL Hair,89570,,
Chorley Borough Council,http://statistics.data.gov.uk/id/local-authority/30UE,Central Support Services,1009,CUST - Customer & Digital,Computer Equipment-Purchase,40098,Communication and Computing,5028,N4Q-PVAP-6278 V6,15/11/2023,0187401,750,Revenue,Node 4,20541,,
Chorley Borough Council,http://statistics.data.gov.uk/id/local-authority/30UE,Central Support Services,1009,CUST - Customer & Digital,Computer Equipment-Purchase,40098,Communication and Computing,5028,N4Q-PVAP-6278 V6,15/11/2023,0188087,4090,Revenue,Node 4,20541,,
Chorley Borough Council,http://statistics.data.gov.uk/id/local-authority/30UE,Central Support Services,1009,CUST - Customer & Digital,Computer Equipment-Purchase,40098,Communication and Computing,5028,N4Q-PVAP-6278 V6,29/11/2023,0188545,950,Revenue,Node 4,20541,,
Chorley Borough Council,http://statistics.data.gov.uk/id/local-authority/30UE,Service Management & Support,1009,CUST - Customer & Digital,Supplies-Grounds Maintenance,40025,"Equipment, Furniture & Materia",5023,"100 litre , 5 litre boxes Nomix Hilite",01/11/2023,0187346,1987,Revenue,Nomix Enviro Ltd,82223,,
Chorley Borough Council,http://statistics.data.gov.uk/id/local-authority/30UE,Central Support Services,1009,GOVN - Policy & Governance,Exhibitions & Special Events,40158,Miscellaneous Expenses,5034,"Filming, post production and edits for Astley Illuminated promotional event video",22/11/2023,0188386,1500,Revenue,North Film Studios Limited,85582,,
Chorley Borough Council,http://statistics.data.gov.uk/id/local-authority/30UE,Service Management & Support,1009,CUST - Customer & Digital,Supplies-Grounds Maintenance,40025,"Equipment, Furniture & Materia",5023,"14x EACH 71107/1-HD 500/850mm Blue 2.8mm Poly & 3.3mm Wire Universal Disk, 4 x EACH 835/66 410/680mm 3.3mm Wire Channel Brush 4 R",29/11/2023,0188422,965.89,Revenue,Northern Municipal Spares Ltd,17752,,
Chorley Borough Council,http://statistics.data.gov.uk/id/local-authority/30UE,Regulatory Services,1048,EARL - Communities,Tools & Equipment - Purchase,40003,"Equipment, Furniture & Materia",5023,Vans,15/11/2023,0184930,641.76,Revenue,Northgate Vehicle Hire (NW) Ltd,17360,,
Chorley Borough Council,http://statistics.data.gov.uk/id/local-authority/30UE,Central Support Services,1009,CUST - Customer & Digital,Hire Of Vehicles and Plant,30028,Contrct Hire & Operating Lease,5018,Vehicle hire: 3.5t Luton Van with tail-lift (April 2023- March 2024) Current Reg: VIN REDACTED,01/11/2023,0187704,766.08,Revenue,Northgate Vehicle Hire (NW) Ltd,17360,,
Chorley Borough Council,http://statistics.data.gov.uk/id/local-authority/30UE,Tourism,1039,GOVN - Policy & Governance,External Contractor,40198,Miscellaneous Expenses,5034,"Astley Park Bonfire and Fireworks: Provision of portaloos , 8 x standard portaloos, 2 x disabled access portaloos, 1 x disabled a",15/11/2023,0187406,890,Revenue,Northwest Portables,74432,,
Chorley Borough Council,http://statistics.data.gov.uk/id/local-authority/30UE,Central Support Services,1009,GROW - Commercial Services,Electricity,20013,Energy Costs,5006,"HD46222K, 01 Sep 23 - 30 Sep 23",08/11/2023,0187757,8332.34,Revenue,Npower Commercial Gas,16814,,
Chorley Borough Council,http://statistics.data.gov.uk/id/local-authority/30UE,Central Support Services,1009,GROW - Commercial Services,Electricity,20013,Energy Costs,5006,"HD46222L, 01 Sep 23 - 30 Sep 23",08/11/2023,0187759,2192.7,Revenue,Npower Commercial Gas,16814,,
Chorley Borough Council,http://statistics.data.gov.uk/id/local-authority/30UE,Parking Services,1066,GROW - Commercial Services,Electricity,20013,Energy Costs,5006,"HD460038, 01 Jul 23 - 30 Sep 23",08/11/2023,0187760,1070.58,Revenue,Npower Commercial Gas,16814,,
Chorley Borough Council,http://statistics.data.gov.uk/id/local-authority/30UE,Central Support Services,1009,GROW - Commercial Services,Electricity,20013,Energy Costs,5006,"HD460039, 01 Jul 23 - 30 Sep 23",08/11/2023,0187762,2618.05,Revenue,Npower Commercial Gas,16814,,
Chorley Borough Council,http://statistics.data.gov.uk/id/local-authority/30UE,Central Support Services,1009,GROW - Commercial Services,Electricity,20013,Energy Costs,5006,"HD46222M, 01 Sep 23 - 30 Sep 23",08/11/2023,0187763,7633.38,Revenue,Npower Commercial Gas,16814,,
Chorley Borough Council,http://statistics.data.gov.uk/id/local-authority/30UE,Recreation & Sport,1037,GROW - Commercial Services,Electricity,20013,Energy Costs,5006,"HD462237, 01 Sep 23 - 30 Sep 23",08/11/2023,0187764,19818.24,Revenue,Npower Commercial Gas,16814,,
Chorley Borough Council,http://statistics.data.gov.uk/id/local-authority/30UE,Business Support,1095,GROW - Commercial Services,Electricity,20013,Energy Costs,5006,"HD46222V, 01 Sep 23 - 30 Sep 23",08/11/2023,0187765,4345.96,Revenue,Npower Commercial Gas,16814,,
Chorley Borough Council,http://statistics.data.gov.uk/id/local-authority/30UE,Business Support,1095,GROW - Commercial Services,Electricity,20013,Energy Costs,5006,"HD46222W, 01 Sep 23 - 30 Sep 23",08/11/2023,0187766,11620.17,Revenue,Npower Commercial Gas,16814,,
Chorley Borough Council,http://statistics.data.gov.uk/id/local-authority/30UE,Central Support Services,1009,GROW - Commercial Services,Electricity,20013,Energy Costs,5006,"HD46223B, 01 Sep 23 - 30 Sep 23",08/11/2023,0187767,1874.81,Revenue,Npower Commercial Gas,16814,,
Chorley Borough Council,http://statistics.data.gov.uk/id/local-authority/30UE,Service Management Support,1009,GROW - Commercial Services,Electricity,20013,Energy Costs,5006,"HD460007, 01 Sep 23 - 30 Sep 23",08/11/2023,0187779,726.34,Revenue,Npower Commercial Gas,16814,,
Chorley Borough Council,http://statistics.data.gov.uk/id/local-authority/30UE,Open Spaces,1038,GROW - Commercial Services,Electricity,20013,Energy Costs,5006,"HD466019, 01 Sep 23 - 30 Sep 23",08/11/2023,0187785,2947.41,Revenue,Npower Commercial Gas,16814,,
Chorley Borough Council,http://statistics.data.gov.uk/id/local-authority/30UE,Business Support,1095,GROW - Commercial Services,Electricity,20013,Energy Costs,5006,"HD46222X, 01 Sep 23 - 30 Sep 23",08/11/2023,0187796,944.3,Revenue,Npower Commercial Gas,16814,,
Chorley Borough Council,http://statistics.data.gov.uk/id/local-authority/30UE,Parking Services,1066,GROW - Commercial Services,Electricity,20013,Energy Costs,5006,"HD46222T, 01 Sep 23 - 30 Sep 23",08/11/2023,0187797,782.33,Revenue,Npower Commercial Gas,16814,,
Chorley Borough Council,http://statistics.data.gov.uk/id/local-authority/30UE,Parking Services,1066,GROW - Commercial Services,Electricity,20013,Energy Costs,5006,"HD46222S, 01 Sep 23 - 30 Sep 23",08/11/2023,0187804,1237.58,Revenue,Npower Commercial Gas,16814,,
Chorley Borough Council,http://statistics.data.gov.uk/id/local-authority/30UE,Parking Services,1066,GROW - Commercial Services,Electricity,20013,Energy Costs,5006,"HD46222Q, 01 Sep 23 - 30 sep 23",08/11/2023,0187805,4618.4,Revenue,Npower Commercial Gas,16814,,
Chorley Borough Council,http://statistics.data.gov.uk/id/local-authority/30UE,Homelessness,1075,GROW - Commercial Services,Electricity,20013,Energy Costs,5006,"HD460034, 01 Sep 23 - 30 sep 23",08/11/2023,0187807,1192.47,Revenue,Npower Commercial Gas,16814,,
Chorley Borough Council,http://statistics.data.gov.uk/id/local-authority/30UE,Business Support,1095,GROW - Commercial Services,Electricity,20013,Energy Costs,5006,"HD46222F, 01 Sep 23 - 30 Sep 23",08/11/2023,0187808,1243.47,Revenue,Npower Commercial Gas,16814,,
Chorley Borough Council,http://statistics.data.gov.uk/id/local-authority/30UE,Homelessness,1075,GROW - Commercial Services,Electricity,20013,Energy Costs,5006,"HD460035, 01 Sep 23 - 30 Sep 23",08/11/2023,0187812,573.15,Revenue,Npower Commercial Gas,16814,,
Chorley Borough Council,http://statistics.data.gov.uk/id/local-authority/30UE,Service Management Support,1009,GROW - Commercial Services,Electricity,20013,Energy Costs,5006,"HD460007, 01 Aug 23 - 31 Aug 23",08/11/2023,0187814,699.44,Revenue,Npower Commercial Gas,16814,,
Chorley Borough Council,http://statistics.data.gov.uk/id/local-authority/30UE,Open Spaces,1038,GROW - Commercial Services,Electricity,20013,Energy Costs,5006,"HD460019, 01 Aug 23 - 31 Aug 23",08/11/2023,0187818,3108.18,Revenue,Npower Commercial Gas,16814,,
Chorley Borough Council,http://statistics.data.gov.uk/id/local-authority/30UE,Open Spaces,1038,GROW - Commercial Services,Electricity,20013,Energy Costs,5006,"HD460025, 01 Aug 23 - 31 Aug 23",08/11/2023,0187819,772.63,Revenue,Npower Commercial Gas,16814,,
Chorley Borough Council,http://statistics.data.gov.uk/id/local-authority/30UE,Open Spaces,1038,GROW - Commercial Services,Electricity,20013,Energy Costs,5006,"HD460025, 01 May 23 - 31 May 23",08/11/2023,0187820,883.12,Revenue,Npower Commercial Gas,16814,,
Chorley Borough Council,http://statistics.data.gov.uk/id/local-authority/30UE,Homelessness,1075,GROW - Commercial Services,Electricity,20013,Energy Costs,5006,"HD460035, 01 Aug 23 - 31 Aug 23",08/11/2023,0187821,545.04,Revenue,Npower Commercial Gas,16814,,
Chorley Borough Council,http://statistics.data.gov.uk/id/local-authority/30UE,Open Spaces,1038,GROW - Commercial Services,Electricity,20013,Energy Costs,5006,"HD460025, 01 Sep 23 - 30 Sep 23",08/11/2023,0187822,722.44,Revenue,Npower Commercial Gas,16814,,
Chorley Borough Council,http://statistics.data.gov.uk/id/local-authority/30UE,Homelessness,1075,GROW - Commercial Services,Electricity,20013,Energy Costs,5006,"HD460034, 01 Aug 23 - 31 Aug 23",08/11/2023,0187824,1186,Revenue,Npower Commercial Gas,16814,,
Chorley Borough Council,http://statistics.data.gov.uk/id/local-authority/30UE,Business Support,1095,GROW - Commercial Services,Electricity,20013,Energy Costs,5006,"HD46222W, 01 Jun 23 - 30 Jun 23",08/11/2023,0187854,10949.94,Revenue,Npower Commercial Gas,16814,,
Chorley Borough Council,http://statistics.data.gov.uk/id/local-authority/30UE,Business Support,1095,GROW - Commercial Services,Electricity,20013,Energy Costs,5006,"HD46222W, 01 Jul 23 - 31 Jul 23",08/11/2023,0187855,10642.2,Revenue,Npower Commercial Gas,16814,,
Chorley Borough Council,http://statistics.data.gov.uk/id/local-authority/30UE,Business Support,1095,GROW - Commercial Services,Electricity,20013,Energy Costs,5006,"HD46222W, 01 Aug 23 - 31 Aug 23",08/11/2023,0187857,11154.24,Revenue,Npower Commercial Gas,16814,,
Chorley Borough Council,http://statistics.data.gov.uk/id/local-authority/30UE,Parking Services,1066,GROW - Commercial Services,Electricity,20013,Energy Costs,5006,Water and wastewater bill,08/11/2023,0187920,3088.38,Revenue,Npower Commercial Gas,16814,,
Chorley Borough Council,http://statistics.data.gov.uk/id/local-authority/30UE,Recreation & Sport,1037,GROW - Commercial Services,Electricity,20013,Energy Costs,5006,Water and wastewater bill,08/11/2023,0187921,2936.44,Revenue,Npower Commercial Gas,16814,,
Chorley Borough Council,http://statistics.data.gov.uk/id/local-authority/30UE,Recreation & Sport,1037,GROW - Commercial Services,Electricity,20013,Energy Costs,5006,water and wastewater bill,08/11/2023,0187922,518.78,Revenue,Npower Commercial Gas,16814,,
Chorley Borough Council,http://statistics.data.gov.uk/id/local-authority/30UE,Central Support Services,1009,GROW - Commercial Services,Electricity,20013,Energy Costs,5006,"HD46222K, 01 Aug 23 - 31 Aug 23",08/11/2023,0187933,8590.34,Revenue,Npower Commercial Gas,16814,,
Chorley Borough Council,http://statistics.data.gov.uk/id/local-authority/30UE,Central Support Services,1009,GROW - Commercial Services,Electricity,20013,Energy Costs,5006,"HD46222K, 01 Jul 23 - 31 Jul 23",08/11/2023,0187936,8498.25,Revenue,Npower Commercial Gas,16814,,
Chorley Borough Council,http://statistics.data.gov.uk/id/local-authority/30UE,Central Support Services,1009,GROW - Commercial Services,Electricity,20013,Energy Costs,5006,"HD46222K, 01 Jun 23 - 30 Jun 23",08/11/2023,0187940,8414.76,Revenue,Npower Commercial Gas,16814,,
Chorley Borough Council,http://statistics.data.gov.uk/id/local-authority/30UE,Central Support Services,1009,GROW - Commercial Services,Electricity,20013,Energy Costs,5006,"HD46222L, 01 Jun 23 - 30 Jun 23",08/11/2023,0187941,2107.3,Revenue,Npower Commercial Gas,16814,,
Chorley Borough Council,http://statistics.data.gov.uk/id/local-authority/30UE,Central Support Services,1009,GROW - Commercial Services,Electricity,20013,Energy Costs,5006,"HD46222L, 01 Jul 23 - 31 Jul 23",08/11/2023,0187942,2177.5,Revenue,Npower Commercial Gas,16814,,
Chorley Borough Council,http://statistics.data.gov.uk/id/local-authority/30UE,Central Support Services,1009,GROW - Commercial Services,Electricity,20013,Energy Costs,5006,"HD46222L, 01 Aug 23 - 31 Aug 23",08/11/2023,0187944,2206.02,Revenue,Npower Commercial Gas,16814,,
Chorley Borough Council,http://statistics.data.gov.uk/id/local-authority/30UE,Recreation & Sport,1037,GROW - Commercial Services,Electricity,20013,Energy Costs,5006,"A0010276409, 01 Sep 23 - 30 Sep 23",08/11/2023,0187946,595.42,Revenue,Npower Commercial Gas,16814,,
Chorley Borough Council,http://statistics.data.gov.uk/id/local-authority/30UE,Recreation & Sport,1037,GROW - Commercial Services,Electricity,20013,Energy Costs,5006,"HD462237, 01 Aug 23 - 31 Aug 23",08/11/2023,0187948,20607.26,Revenue,Npower Commercial Gas,16814,,
Chorley Borough Council,http://statistics.data.gov.uk/id/local-authority/30UE,Central Support Services,1009,GROW - Commercial Services,Electricity,20013,Energy Costs,5006,"HD46223B, 01 Jul 23 - 31 Jul 23",08/11/2023,0187949,1377.45,Revenue,Npower Commercial Gas,16814,,
Chorley Borough Council,http://statistics.data.gov.uk/id/local-authority/30UE,Recreation & Sport,1037,GROW - Commercial Services,Electricity,20013,Energy Costs,5006,"HD462239, 01 Jun 23 - 30 Jun 23",08/11/2023,0187950,2896.31,Revenue,Npower Commercial Gas,16814,,
Chorley Borough Council,http://statistics.data.gov.uk/id/local-authority/30UE,Recreation & Sport,1037,GROW - Commercial Services,Electricity,20013,Energy Costs,5006,"HD462239, 01 Jul 23 - 31 Jul 23",08/11/2023,0187952,2946.43,Revenue,Npower Commercial Gas,16814,,
Chorley Borough Council,http://statistics.data.gov.uk/id/local-authority/30UE,Parking Services,1066,GROW - Commercial Services,Electricity,20013,Energy Costs,5006,"HD46222Q, 01 Aug 23 - 31 Aug 23",08/11/2023,0187955,4609.07,Revenue,Npower Commercial Gas,16814,,
Chorley Borough Council,http://statistics.data.gov.uk/id/local-authority/30UE,Business Support,1095,GROW - Commercial Services,Electricity,20013,Energy Costs,5006,"HD46222F, 01 Aug 23 - 31 Aug 23",08/11/2023,0187956,1188.5,Revenue,Npower Commercial Gas,16814,,
Chorley Borough Council,http://statistics.data.gov.uk/id/local-authority/30UE,Recreation & Sport,1037,GROW - Commercial Services,Electricity,20013,Energy Costs,5006,"HD462238, 01 Jun 23 - 30 Jun 23",08/11/2023,0187959,3003.77,Revenue,Npower Commercial Gas,16814,,
Chorley Borough Council,http://statistics.data.gov.uk/id/local-authority/30UE,Recreation & Sport,1037,GROW - Commercial Services,Electricity,20013,Energy Costs,5006,"HD462239, 01 Aug 23 - 31 Aug 23",08/11/2023,0187961,2932.95,Revenue,Npower Commercial Gas,16814,,
Chorley Borough Council,http://statistics.data.gov.uk/id/local-authority/30UE,Recreation & Sport,1037,GROW - Commercial Services,Electricity,20013,Energy Costs,5006,"HD462238, 01 Jul 23 - 31 Jul 23",08/11/2023,0187963,3120.24,Revenue,Npower Commercial Gas,16814,,
Chorley Borough Council,http://statistics.data.gov.uk/id/local-authority/30UE,Recreation & Sport,1037,GROW - Commercial Services,Electricity,20013,Energy Costs,5006,"HD462238, 01 Aug 23 - 31 Aug 23",08/11/2023,0187964,3092.7,Revenue,Npower Commercial Gas,16814,,
Chorley Borough Council,http://statistics.data.gov.uk/id/local-authority/30UE,Central Support Services,1009,GROW - Commercial Services,Electricity,20013,Energy Costs,5006,"HD46223B, 01 Jun 23 - 30 Jun 23",08/11/2023,0187965,1134.8,Revenue,Npower Commercial Gas,16814,,
Chorley Borough Council,http://statistics.data.gov.uk/id/local-authority/30UE,Parking Services,1066,GROW - Commercial Services,Electricity,20013,Energy Costs,5006,"HD46222S, 01 Aug 23 - 31 Aug 23",08/11/2023,0187968,1242.68,Revenue,Npower Commercial Gas,16814,,
Chorley Borough Council,http://statistics.data.gov.uk/id/local-authority/30UE,Parking Services,1066,GROW - Commercial Services,Electricity,20013,Energy Costs,5006,"HD46222T, 01 Aug 23 - 31 Aug 23",08/11/2023,0187969,759.76,Revenue,Npower Commercial Gas,16814,,
Chorley Borough Council,http://statistics.data.gov.uk/id/local-authority/30UE,Central Support Services,1009,GROW - Commercial Services,Electricity,20013,Energy Costs,5006,"HD46223B, 01 Aug 23 - 31 Aug 23",08/11/2023,0187970,1566.64,Revenue,Npower Commercial Gas,16814,,
Chorley Borough Council,http://statistics.data.gov.uk/id/local-authority/30UE,Recreation & Sport,1037,GROW - Commercial Services,Electricity,20013,Energy Costs,5006,"A0010276409, 01 Aug 23 - 31 Aug 23",08/11/2023,0187971,568.96,Revenue,Npower Commercial Gas,16814,,
Chorley Borough Council,http://statistics.data.gov.uk/id/local-authority/30UE,Recreation & Sport,1037,GROW - Commercial Services,Electricity,20013,Energy Costs,5006,"HD462237, 01 Jun 23 - 30 Jun 23",08/11/2023,0187972,20072.36,Revenue,Npower Commercial Gas,16814,,
Chorley Borough Council,http://statistics.data.gov.uk/id/local-authority/30UE,Recreation & Sport,1037,GROW - Commercial Services,Electricity,20013,Energy Costs,5006,"HD462237, 01 Jul 23 - 31 Jul 23",08/11/2023,0187973,20254.91,Revenue,Npower Commercial Gas,16814,,
Chorley Borough Council,http://statistics.data.gov.uk/id/local-authority/30UE,Central Support Services,1009,GROW - Commercial Services,Electricity,20013,Energy Costs,5006,"HD46222M, 01 Jul 23 - 31 Jul 23",08/11/2023,0187974,6981.72,Revenue,Npower Commercial Gas,16814,,
Chorley Borough Council,http://statistics.data.gov.uk/id/local-authority/30UE,Central Support Services,1009,GROW - Commercial Services,Electricity,20013,Energy Costs,5006,"HD46222M, 01 Aug 23 - 31 Aug 23",08/11/2023,0187975,7153.33,Revenue,Npower Commercial Gas,16814,,
Chorley Borough Council,http://statistics.data.gov.uk/id/local-authority/30UE,Central Support Services,1009,GROW - Commercial Services,Electricity,20013,Energy Costs,5006,"HD46222M, 01 Jun 23 - 30 Jun 23",08/11/2023,0187976,7004.72,Revenue,Npower Commercial Gas,16814,,
Chorley Borough Council,http://statistics.data.gov.uk/id/local-authority/30UE,Business Support,1095,GROW - Commercial Services,Electricity,20013,Energy Costs,5006,"HD46222X, 01 Aug 23 - 31 Aug 23",08/11/2023,0187982,904.52,Revenue,Npower Commercial Gas,16814,,
Chorley Borough Council,http://statistics.data.gov.uk/id/local-authority/30UE,Recreation & Sport,1037,GROW - Commercial Services,Electricity,20013,Energy Costs,5006,Clayton brook village hall,08/11/2023,0188065,505.86,Revenue,Npower Commercial Gas,16814,,
Chorley Borough Council,http://statistics.data.gov.uk/id/local-authority/30UE,Recreation & Sport,1037,GROW - Commercial Services,Electricity,20013,Energy Costs,5006,Clayton brook village hall,08/11/2023,0188067,524.55,Revenue,Npower Commercial Gas,16814,,
Chorley Borough Council,http://statistics.data.gov.uk/id/local-authority/30UE,Parking Services,1066,GROW - Commercial Services,External Contractors,50008,Private Contractors,5042,"Provision of off street car park enforcement for period 01.04.23 - 31.03.24, , Rate: 18.40 ph, , Monday - Saturday Parking Atten",29/11/2023,0188232,4305.6,Revenue,NSL Limited,67253,,
Chorley Borough Council,http://statistics.data.gov.uk/id/local-authority/30UE,Central Support Services,1009,EARL - Communities,Core Funding Grants,40133,Grants and Subscriptions,5031,Core Small Funding Grant,15/11/2023,0188068,500,Revenue,NW Events Committee,89610,,
Chorley Borough Council,http://statistics.data.gov.uk/id/local-authority/30UE,Business Support,1095,GROW - Commercial Services,Electricity,20013,Energy Costs,5006,unit 12 Market Walk,08/11/2023,0188013,541.28,Revenue,Opus Energy Ltd,65093,,
Chorley Borough Council,http://statistics.data.gov.uk/id/local-authority/30UE,Culture & Heritage,1036,GOVN - Policy & Governance,Professional Fees,14011,Direct Employee Expenses,5001,Performance of Last Night of the Proms 2nd September 2023 split of ticket sales,15/11/2023,0188053,1986.6,Revenue,Outreach Opera,83895,,
Chorley Borough Council,http://statistics.data.gov.uk/id/local-authority/30UE,Service Management & Support,1009,CUST - Customer & Digital,Supplies - Workshop,40246,"Equipment, Furniture & Materia",5023,As per invoice number 21634,15/11/2023,0188111,633.1,Revenue,P D M Components,19204,,
Chorley Borough Council,http://statistics.data.gov.uk/id/local-authority/30UE,Central Support Services,1009,EARL - Communities,Core Funding Grants,40133,Grants and Subscriptions,5031,Core Small Funding Grant,15/11/2023,0188126,500,Revenue,Parish Church of St Laurence,80975,,
Chorley Borough Council,http://statistics.data.gov.uk/id/local-authority/30UE,Control Accounts,Control,GROW - Commercial Services,Manual Control Account,00001,Balance Sheet,Balance,,08/11/2023,0187799,52741.15,Revenue,Partners the Stationers (company No. 014017597),89648,,
Chorley Borough Council,http://statistics.data.gov.uk/id/local-authority/30UE,Economic Development,1096,GROW - Commercial Services,Cleaning Materials,40019,"Equipment, Furniture & Materia",5023,Cleaning Order,22/11/2023,0184732,580.24,Revenue,Pattersons Holdings (Bristol),77537,,
Chorley Borough Council,http://statistics.data.gov.uk/id/local-authority/30UE,Economic Development,1096,GROW - Commercial Services,Cleaning Materials,40019,"Equipment, Furniture & Materia",5023,Cleaning Order for Market & Market Walk,01/11/2023,0185608,922.6,Revenue,Pattersons Holdings (Bristol),77537,,
Chorley Borough Council,http://statistics.data.gov.uk/id/local-authority/30UE,Business Support,1095,GROW - Commercial Services,Cleaning Materials,40019,"Equipment, Furniture & Materia",5023,"AA301- Mini Smart One Mini Toilet Rolls 2 ply, x12",01/11/2023,0187495,544.44,Revenue,Pattersons Holdings (Bristol),77537,,
Chorley Borough Council,http://statistics.data.gov.uk/id/local-authority/30UE,Central Support Services,1009,EARL - Communities,Training Course Fees,17010,Indirect Employee Expenses,5002,Intermediate Excel Training 1 day course for x 12 delegates,15/11/2023,0187710,780,Revenue,Paul Brown Training Ltd,88640,,
Chorley Borough Council,http://statistics.data.gov.uk/id/local-authority/30UE,Tourism,1039,GOVN - Policy & Governance,External Contractor,40198,Miscellaneous Expenses,5034,Astley Park Bonfire and Fireworks: Supply TO INCLUDE PA SYSTEM 2X GENSETS ALL CABLES RADIO LINK TO EXTRA SPEAKERS AND CREW COSTS,29/11/2023,0188544,2750,Revenue,Paul K Sound & Vision,16607,,
Chorley Borough Council,http://statistics.data.gov.uk/id/local-authority/30UE,Tourism,1039,GOVN - Policy & Governance,External Contractor,40198,Miscellaneous Expenses,5034,"Remembrance Sunday: TO SUPPLY SOUND EQUIPMENT FOR THE, ABOVE TO INCLUDE SPEAKERS ALL ROUND , INCLUDING AT THE SCREEN , BACKUP GEN",29/11/2023,0188631,850,Revenue,Paul K Sound & Vision,16607,,
Chorley Borough Council,http://statistics.data.gov.uk/id/local-authority/30UE,Central Support Services,1009,GOVN - Policy & Governance,HR Recruitment Expenses,15200,Indirect Employee Expenses,5002,DBS Checks for staff,15/11/2023,0188001,624,Revenue,Personnel Checks Ltd,81534,,
Chorley Borough Council,http://statistics.data.gov.uk/id/local-authority/30UE,Central Support Services,1009,CUST - Customer & Digital,IT Software - Annual Licences,40101,Communication and Computing,5028,"Veeam Backup for Microsoft Office 365 - 1 Year - Renewal Subscription - Upfront Billing & 129, Production - 24/7 Support - Public",15/11/2023,0185813,1669.26,Revenue,Phoenix Software Ltd,17046,,
Chorley Borough Council,http://statistics.data.gov.uk/id/local-authority/30UE,Central Support Services,1009,CUST - Customer & Digital,Consultants` Fees,40077,Services,5027,"Contract work to assist with planning enforcement, Contractor: NAME REDACTED Time period: 1 April 2023  31 March 2024",08/11/2023,0187707,1290,Revenue,Planning and PACE Solutions Ltd,82083,,
Chorley Borough Council,http://statistics.data.gov.uk/id/local-authority/30UE,Central Support Services,1009,CUST - Customer & Digital,Consultants` Fees,40077,Services,5027,"Contract work to assist with planning enforcement, Contractor: NAME REDACTED Time period: 1 April 2023  31 March 2024",29/11/2023,0188493,1935,Revenue,Planning and PACE Solutions Ltd,82083,,
Chorley Borough Council,http://statistics.data.gov.uk/id/local-authority/30UE,Development Control,1091,PLAN - Planning & Development,Planning Application Fees,60149,Customer & Client Receipts,5064,Refund for planning,01/11/2023,0187463,1386,Revenue,Planning Portal Ltd,77808,,
Chorley Borough Council,http://statistics.data.gov.uk/id/local-authority/30UE,Precepts and Collection Fund,Precepts,GOVN - Policy & Governance,LPA Precept,02010,Precepts & Collection Fund,Precept,PCC Council Tax Precept,03/11/2023,0187386,953889,Revenue,Police & Crime Commissioner,17438,,
Chorley Borough Council,http://statistics.data.gov.uk/id/local-authority/30UE,Regulatory Services,1048,PLAN - Planning & Development,Professional Fees,40063,Services,5027,Acccrediation for licensed premises within Chorley Borough via Licensing Security & Vulnerability Initiative,08/11/2023,0187831,4138.75,Revenue,Police CPI Limited,89638,,
Chorley Borough Council,http://statistics.data.gov.uk/id/local-authority/30UE,Economic Development,1096,GROW - Commercial Services,Fixtures & Fittings - Purchase,20027,Fixtures and Fittings,5010,"As per quote: AD19642/1 Re: Town Centre Signs , , CAR PARK TRAY SIGN, Digitally printed vinyl graphics with matt laminate mounted",29/11/2023,0188338,1963.06,Revenue,Poppy Signs Ltd,21898,,
Chorley Borough Council,http://statistics.data.gov.uk/id/local-authority/30UE,Corporate Management,1008,GOVN - Policy & Governance,Corp Training Organisational Development,17006,Indirect Employee Expenses,5002,� Graduate Development Programme module 4,01/11/2023,0187471,600,Revenue,Potential Unearthed,22243,,
Chorley Borough Council,http://statistics.data.gov.uk/id/local-authority/30UE,Development Control,1091,PLAN - Planning & Development,Agency Staff,13000,Direct Employee Expenses,5001,"Planning consulting advice, including the consideration and determination of planning applicationsTime period: 24 July 2023 - 31 ",01/11/2023,0186211,1665,Revenue,Power Planning Consulting Ltd,89435,,
Chorley Borough Council,http://statistics.data.gov.uk/id/local-authority/30UE,Development Control,1091,PLAN - Planning & Development,Agency Staff,13000,Direct Employee Expenses,5001,"Planning consulting advice, including the consideration and determination of planning applications, Time period: 24 July 2023 - 3",01/11/2023,0187413,1665,Revenue,Power Planning Consulting Ltd,89435,,
Chorley Borough Council,http://statistics.data.gov.uk/id/local-authority/30UE,Development Control,1091,PLAN - Planning & Development,Agency Staff,13000,Direct Employee Expenses,5001,"Planning consulting advice, including the consideration and determination of planning applications, Time period: 24 July 2023 - 3",01/11/2023,0187472,1665,Revenue,Power Planning Consulting Ltd,89435,,
Chorley Borough Council,http://statistics.data.gov.uk/id/local-authority/30UE,Development Control,1091,PLAN - Planning & Development,Agency Staff,13000,Direct Employee Expenses,5001,"Planning consulting advice, including the consideration and determination of planning applications, Time period: 24 July 2023 - 3",01/11/2023,0187700,1665,Revenue,Power Planning Consulting Ltd,89435,,
Chorley Borough Council,http://statistics.data.gov.uk/id/local-authority/30UE,Development Control,1091,PLAN - Planning & Development,Agency Staff,13000,Direct Employee Expenses,5001,"Planning consulting advice, including the consideration and determination of planning applications, Time period: 24 July 2023 - 3",15/11/2023,0188054,1665,Revenue,Power Planning Consulting Ltd,89435,,
Chorley Borough Council,http://statistics.data.gov.uk/id/local-authority/30UE,Development Control,1091,PLAN - Planning & Development,Agency Staff,13000,Direct Employee Expenses,5001,"Planning consulting advice, including the consideration and determination of planning applications, Time period: 24 July 2023 - 3",22/11/2023,0188293,1485,Revenue,Power Planning Consulting Ltd,89435,,
Chorley Borough Council,http://statistics.data.gov.uk/id/local-authority/30UE,Development Control,1091,PLAN - Planning & Development,Agency Staff,13000,Direct Employee Expenses,5001,"Planning consulting advice, including the consideration and determination of planning applications, Time period: 24 July 2023 - 3",29/11/2023,0188436,1620,Revenue,Power Planning Consulting Ltd,89435,,
Chorley Borough Council,http://statistics.data.gov.uk/id/local-authority/30UE,Elections,1012,GOVN - Policy & Governance,Postages,40082,Communication and Computing,5028,ITR mailings,01/11/2023,0187388,542.01,Revenue,Print Image Facilities LLP,57870,,
Chorley Borough Council,http://statistics.data.gov.uk/id/local-authority/30UE,Elections,1012,GOVN - Policy & Governance,Printing,40043,"Printing, Stationery & General",5026,"ITR mailings 2023, , Description: 2023 ITR Mailings, Stationery items, 1) 3,000 ITR forms, size A3, printed black face and revers",01/11/2023,0187415,1592.23,Revenue,Print Image Network,21171,,
Chorley Borough Council,http://statistics.data.gov.uk/id/local-authority/30UE,Other Short Term Creditors,0,GOVN - Policy & Governance,General Balances,00100,Balance Sheet,Balance,Prudential - Oct 23 Monthly Deductions from payroll,15/11/2023,0188075,1550,Revenue,PRUDENTIAL,18178,,
Chorley Borough Council,http://statistics.data.gov.uk/id/local-authority/30UE,Other Short Term Creditors,0,GOVN - Policy & Governance,General Balances,00100,Balance Sheet,Balance,Prudential AVC Wise - Oct 23 Monthly Deductions from payroll,15/11/2023,0188076,11478.79,Revenue,PRUDENTIAL,18178,,
Chorley Borough Council,http://statistics.data.gov.uk/id/local-authority/30UE,Interest Payable on Debt,1020,GOVN - Policy & Governance,Interest Payable,09009,Interest Payments,5067,Principal and interest loan repayment 2022/23,03/11/2023,0187448,101000,Revenue,Public Works Loans Board,21480,,
Chorley Borough Council,http://statistics.data.gov.uk/id/local-authority/30UE,Interest Payable on Debt,1020,GOVN - Policy & Governance,Interest Payable,09009,Interest Payments,5067,Interest LN 509689,03/11/2023,0187450,17465.05,Revenue,Public Works Loans Board,21480,,
Chorley Borough Council,http://statistics.data.gov.uk/id/local-authority/30UE,Interest Payable on Debt,1020,GOVN - Policy & Governance,Interest Payable,09009,Interest Payments,5067,Interest LN 509691,03/11/2023,0187450,16335,Revenue,Public Works Loans Board,21480,,
Chorley Borough Council,http://statistics.data.gov.uk/id/local-authority/30UE,Capital,Capital,PLAN - Planning & Development,Main Contractor,03007,Capital Expenditure,Capital,Construction of Changing Facility at King George V Playing Fields. Original contract value of 939165.78 minus 84950 invoiced and ,22/11/2023,0188326,48483.15,Capital,Pulse Design and Build Ltd,85602,,
Chorley Borough Council,http://statistics.data.gov.uk/id/local-authority/30UE,Homelessness,1075,EARL - Communities,Bed and Breakfast Accommodation,40232,Miscellaneous Expenses,5034,"TA - REF, HOM173615 01/10/23-31/10/23, HOM173699 01/10/23-31/10/23, HOM173803 03/10/23-10/10/23",29/11/2023,0188470,4395.33,Revenue,Purple Roomz,84223,,
Chorley Borough Council,http://statistics.data.gov.uk/id/local-authority/30UE,Central Support Services,1009,GROW - Commercial Services,Planned Maintenance,20006,Repairs Maintenance & Alts,5005,Asbestos Survey at Cotswold House,01/11/2023,0183923,845,Revenue,R.B. Asbestos Consultants Ltd,54189,,
Chorley Borough Council,http://statistics.data.gov.uk/id/local-authority/30UE,Central Support Services,1009,GROW - Commercial Services,Planned Maintenance,20006,Repairs Maintenance & Alts,5005,"Asbestos Survey at Astley Hall & Buildings, Astley Coach House 225, Astley Farm House 225, Astley Hall/Cottage 645",01/11/2023,0184347,645,Revenue,R.B. Asbestos Consultants Ltd,54189,,
Chorley Borough Council,http://statistics.data.gov.uk/id/local-authority/30UE,Central Support Services,1009,GROW - Commercial Services,Planned Maintenance,20006,Repairs Maintenance & Alts,5005,Asbestos Survey at Town Hall,01/11/2023,0184348,1845,Revenue,R.B. Asbestos Consultants Ltd,54189,,
Chorley Borough Council,http://statistics.data.gov.uk/id/local-authority/30UE,Central Support Services,1009,GROW - Commercial Services,Planned Maintenance,20006,Repairs Maintenance & Alts,5005,"Asbestos Survey at Commercial Sites, Dole Lane 225, 100 Market St 225, 102B Market St 225, 110A Market St 225, 112A Market St",01/11/2023,0185133,685,Revenue,R.B. Asbestos Consultants Ltd,54189,,
Chorley Borough Council,http://statistics.data.gov.uk/id/local-authority/30UE,Regulatory Services,1048,PLAN - Planning & Development,Taxi Testing & Vehicle Safety Report,40234,Services,5027,taxi testing,01/11/2023,0187692,648.5,Revenue,R.C.J Motors,63625,,
Chorley Borough Council,http://statistics.data.gov.uk/id/local-authority/30UE,Homelessness,1075,EARL - Communities,Other Contributions,40145,Grants and Subscriptions,5031,"ADDRESS REDACTED, Door replacement",08/11/2023,0187416,1433.25,Revenue,Rhea Projects Ltd,77753,,
Chorley Borough Council,http://statistics.data.gov.uk/id/local-authority/30UE,Homelessness,1075,EARL - Communities,Other Contributions,40145,Grants and Subscriptions,5031,Radiator replacement x3 and valves and TRV in back bedroom - ADDRESS REDACTED,22/11/2023,0188148,920,Revenue,Rhea Projects Ltd,77753,,
Chorley Borough Council,http://statistics.data.gov.uk/id/local-authority/30UE,Homelessness,1075,EARL - Communities,Other Contributions,40145,Grants and Subscriptions,5031,"Boiler Replacement and radiator in bathroom, 18m gas run - ADDRESS REDACTED",22/11/2023,0188323,3345,Revenue,Rhea Projects Ltd,77753,,
Chorley Borough Council,http://statistics.data.gov.uk/id/local-authority/30UE,Non Domestic Rates Redistribut,0,GOVN - Policy & Governance,Tariff to Business Rates Pool,49002,Expenditure not in NCOS,0,Lancs Bus Rates Pool,03/11/2023,0187399,602094,Revenue,Ribble Valley Borough Council DIRECT DEBIT ONLY,21100,,
Chorley Borough Council,http://statistics.data.gov.uk/id/local-authority/30UE,Non Domestic Rates Redistribut,0,GOVN - Policy & Governance,Tariff to Business Rates Pool,49002,Expenditure not in NCOS,0,Lancs Bus Rates Pool,03/11/2023,0187445,602094,Revenue,Ribble Valley Borough Council DIRECT DEBIT ONLY,21100,,
Chorley Borough Council,http://statistics.data.gov.uk/id/local-authority/30UE,Non Domestic Rates Redistribut,0,GOVN - Policy & Governance,Tariff to Business Rates Pool,49002,Expenditure not in NCOS,0,lancashire business rates pool 2022/23,03/11/2023,0187446,602094,Revenue,Ribble Valley Borough Council DIRECT DEBIT ONLY,21100,,
Chorley Borough Council,http://statistics.data.gov.uk/id/local-authority/30UE,Homelessness,1075,EARL - Communities,Grants - Tenant Participation,40142,Grants and Subscriptions,5031,0,15/11/2023,0188205,500,Revenue,Richard Palin,85421,,
Chorley Borough Council,http://statistics.data.gov.uk/id/local-authority/30UE,Central Support Services,1009,CUST - Customer & Digital,Computer Equipment-Purchase,40098,Communication and Computing,5028,"20 x iphone SE black, 20 x apple usb c power adapter , Samsung Galaxy S23 Ultra",08/11/2023,0185380,1556.13,Revenue,Ricoh UK Ltd,17126,,
Chorley Borough Council,http://statistics.data.gov.uk/id/local-authority/30UE,Central Support Services,1009,CUST - Customer & Digital,Other Fees,40212,Miscellaneous Expenses,5034,Ongoing Ricoh machine rental costs shared Chorley/SRBC,29/11/2023,0186200,1285.94,Revenue,Ricoh UK Ltd,17126,,
Chorley Borough Council,http://statistics.data.gov.uk/id/local-authority/30UE,Central Support Services,1009,CUST - Customer & Digital,Other Fees,40212,Miscellaneous Expenses,5034,Ongoing Ricoh machine rental costs shared Chorley/SRBC,01/11/2023,0187642,661.54,Revenue,Ricoh UK Ltd,17126,,
Chorley Borough Council,http://statistics.data.gov.uk/id/local-authority/30UE,Service Management & Support,1009,CUST - Customer & Digital,Supplies-Grounds Maintenance,40025,"Equipment, Furniture & Materia",5023,Supply 20 x 10litre impact line marker with 20 orange nozzles. deliver to Bengal St depot,01/11/2023,0186079,608,Revenue,Rigby Taylor Ltd,16299,,
Chorley Borough Council,http://statistics.data.gov.uk/id/local-authority/30UE,Tourism,1039,GOVN - Policy & Governance,External Contractor,40198,Miscellaneous Expenses,5034,"Astley Park Bonfire and Fireworks: Safety Stewards to manage road closure on Chancery Road, Chorley on Sunday 5th November 2023.",29/11/2023,0188541,560,Revenue,Road Safety Services Ltd,69457,,
Chorley Borough Council,http://statistics.data.gov.uk/id/local-authority/30UE,Business Support,1095,GROW - Commercial Services,Professional Fees,40063,Services,5027,Undertaking work to secure a lease renewal to Iceland for a period of 5 years with effect form 2nd October 2023 at a rental of 7,15/11/2023,0187715,4500,Revenue,Robert Pinkus & Co,19273,,
Chorley Borough Council,http://statistics.data.gov.uk/id/local-authority/30UE,Elections,1012,GOVN - Policy & Governance,Postages,40082,Communication and Computing,5028,"postal vote mail out - By Elections 14 September, 1st batch",01/11/2023,0187567,1753.99,Revenue,Royal Mail Group Plc,17522,,
Chorley Borough Council,http://statistics.data.gov.uk/id/local-authority/30UE,Central Support Services,1009,GOVN - Policy & Governance,HR Recruitment - Advertising,15300,Indirect Employee Expenses,5002,Chorley Recruitment Videos - Main Shoot 25/10/2023,15/11/2023,0188046,1200,Revenue,RTP Films Ltd,81156,,
Chorley Borough Council,http://statistics.data.gov.uk/id/local-authority/30UE,Central Support Services,1009,EARL - Communities,Core Funding Grants,40133,Grants and Subscriptions,5031,Core Small Funding Grant,15/11/2023,0188124,500,Revenue,Sambafriq,21441,,
Chorley Borough Council,http://statistics.data.gov.uk/id/local-authority/30UE,Parking Services,1066,GROW - Commercial Services,Electricity,20013,Energy Costs,5006,"1613 2589 042, 21 Mar 20 - 19 Jun 20",08/11/2023,0187875,757.34,Revenue,Scottish Power,18998,,
Chorley Borough Council,http://statistics.data.gov.uk/id/local-authority/30UE,Homelessness,1075,GROW - Commercial Services,Security Service,40062,Services,5027,"To provide site concierge services at Cotswold House temporary accommodation facility, hours as outlined , by the premises manage",08/11/2023,0187771,7885.98,Revenue,Secure FM Ltd,86928,,
Chorley Borough Council,http://statistics.data.gov.uk/id/local-authority/30UE,Business Support,1095,GROW - Commercial Services,Security Service,40062,Services,5027,"To provide site concierge services at , Tatton Gardens Extra Care facility, , hours as outlined by the premises , manager. 7 days",08/11/2023,0187847,7885.98,Revenue,Secure FM Ltd,86928,,
Chorley Borough Council,http://statistics.data.gov.uk/id/local-authority/30UE,Homelessness,1075,GROW - Commercial Services,Service Fees,40056,Services,5027,Extra security at Cotswold House for when the CCTV wasn`t working in the winter watch room,08/11/2023,0187904,1532.25,Revenue,Secure FM Ltd,86928,,
Chorley Borough Council,http://statistics.data.gov.uk/id/local-authority/30UE,Business Support,1095,GROW - Commercial Services,Security Service,40062,Services,5027,"To provide evening Site Security Services at Market Walk Shopping Centre from 5pm until midnight, 7 , days a week. , , Hourly rat",15/11/2023,0188041,2921.49,Revenue,Secure FM Ltd,86928,,
Chorley Borough Council,http://statistics.data.gov.uk/id/local-authority/30UE,Central Support Services,1009,EARL - Communities,Misc Expenses,40200,Miscellaneous Expenses,5034,Delivery of Hate Crime mural and competition in Coppull,01/11/2023,0187392,1750,Revenue,Simon Daly / Kingsyze Graffiti,89565,,
Chorley Borough Council,http://statistics.data.gov.uk/id/local-authority/30UE,Central Support Services,1009,GOVN - Policy & Governance,Misc Expenses,40200,Miscellaneous Expenses,5034,Salary costs of Employment and Skills Officer (NAME REDACTED) due to South Ribble Borough Council for the time period 05/06/2023,08/11/2023,0187732,8595.5,Revenue,South Ribble Borough Council,17889,,
Chorley Borough Council,http://statistics.data.gov.uk/id/local-authority/30UE,Central Support Services,1009,GOVN - Policy & Governance,Service Fees to other Local Authorities,40076,Services,5027,Quarter 2 Recharges 2023/24,15/11/2023,0188088,758181.84,Revenue,South Ribble Borough Council,17889,,
Chorley Borough Council,http://statistics.data.gov.uk/id/local-authority/30UE,Business Support,1095,GROW - Commercial Services,Fixtures & Fittings - Repair/Mtnce,20028,Fixtures and Fittings,5010,Market Walk full canopy clean including green area on roof above boots and windows above canopy. (Including any vacant unit groun,01/11/2023,0186072,4590,Revenue,Sparkle Window Cleaning (Michael Jennings),77989,,
Chorley Borough Council,http://statistics.data.gov.uk/id/local-authority/30UE,Central Support Services,1009,EARL - Communities,Misc Expenses,40200,Miscellaneous Expenses,5034,Tempo Time Credits 2023-2024 Support costs,01/11/2023,0185540,7138.75,Revenue,Spice Innovations Ltd T/A Tempo Time Credits,61318,,
Chorley Borough Council,http://statistics.data.gov.uk/id/local-authority/30UE,Central Support Services,1009,EARL - Communities,Core Funding Grants,40133,Grants and Subscriptions,5031,Core Small funding Grant,22/11/2023,0188384,500,Revenue,St Vincent De Paul Society,89415,,
Chorley Borough Council,http://statistics.data.gov.uk/id/local-authority/30UE,Central Support Services,1009,EARL - Communities,Misc Expenses,40200,Miscellaneous Expenses,5034,Delivery of activity for Chorley Town West Neighbourhood Priority in Coppull and Buttermere,22/11/2023,0188388,1000,Revenue,St Vincent De Paul Society,89415,,
Chorley Borough Council,http://statistics.data.gov.uk/id/local-authority/30UE,Corporate Management,1008,EARL - Communities,Other Contributions,40145,Grants and Subscriptions,5031,Warm Spaces,08/11/2023,0187725,500,Revenue,St. Joseph�s Community Club,87261,,
Chorley Borough Council,http://statistics.data.gov.uk/id/local-authority/30UE,Tourism,1039,GOVN - Policy & Governance,Other Contributions,40145,Grants and Subscriptions,5031,Park and Ride service for Chorley Flower Show,29/11/2023,0188485,4620,Revenue,Stagecoach Services Limited,18598,,
Chorley Borough Council,http://statistics.data.gov.uk/id/local-authority/30UE,Service Management & Support,1009,CUST - Customer & Digital,Diesel/Derv,30007,Direct Transport Costs,5016,6500 litre road diesel at 122.63ppl,01/11/2023,0187400,8314.8,Revenue,Standard Fuel Oils,85167,,
Chorley Borough Council,http://statistics.data.gov.uk/id/local-authority/30UE,Service Management & Support,1009,CUST - Customer & Digital,Diesel/Derv,30007,Direct Transport Costs,5016,7000 litres road diesel as procured via the chest,22/11/2023,0188310,8460.9,Revenue,Standard Fuel Oils,85167,,
Chorley Borough Council,http://statistics.data.gov.uk/id/local-authority/30UE,Capital,Capital,EARL - Communities,Grants,03002,Capital Expenditure,Capital,"23/00182/CAG, ADDRESS REDACTED",15/11/2023,0188114,5328,Capital,Stannah Lift Services Ltd,80943,,
Chorley Borough Council,http://statistics.data.gov.uk/id/local-authority/30UE,Capital,Capital,EARL - Communities,Grants,03002,Capital Expenditure,Capital,ADDRESS REDACTED,15/11/2023,0188149,2997,Capital,Stannah Lift Services Ltd,80943,,
Chorley Borough Council,http://statistics.data.gov.uk/id/local-authority/30UE,Capital,Capital,EARL - Communities,Grants,03002,Capital Expenditure,Capital,22/00064/DFG,29/11/2023,0188523,3457,Capital,Stannah Lift Services Ltd,80943,,
Chorley Borough Council,http://statistics.data.gov.uk/id/local-authority/30UE,Homelessness,1075,EARL - Communities,Grants - Tenant Participation,40142,Grants and Subscriptions,5031,0,15/11/2023,0188217,500,Revenue,Stephen Daniels,86923,,
Chorley Borough Council,http://statistics.data.gov.uk/id/local-authority/30UE,Corporate Management,1008,GOVN - Policy & Governance,Corp Training Organisational Development,17006,Indirect Employee Expenses,5002,"Design, delivery and collation of outputs for 2 x SLT team days., Inclusive of all travel expenses",01/11/2023,0187520,3187.5,Revenue,Sticky Change,89630,,
Chorley Borough Council,http://statistics.data.gov.uk/id/local-authority/30UE,Capital,Capital,PLAN - Planning & Development,Main Contractor,03007,Capital Expenditure,Capital,Jubilee Recreation Ground Sport & Access Enhancement Project. Lead Design Civils Services as detailed in quotation.,08/11/2023,0187947,5386.2,Capital,Street Civil Engineering Limited,76750,,
Chorley Borough Council,http://statistics.data.gov.uk/id/local-authority/30UE,Central Support Services,1009,GROW - Commercial Services,General Repairs - Reactive,20004,Repairs Maintenance & Alts,5005,Queens Rd Car Park Works as agreed with NAME REDACTED,15/11/2023,0188062,1719.25,Revenue,Street Civil Engineering Limited,76750,,
Chorley Borough Council,http://statistics.data.gov.uk/id/local-authority/30UE,Capital,Capital,EARL - Communities,Grants,03002,Capital Expenditure,Capital,ADDRESS REDACTED,01/11/2023,0187630,6330,Capital,Stringfellow Bldg Cntrctrs Ltd,17893,,
Chorley Borough Council,http://statistics.data.gov.uk/id/local-authority/30UE,Capital,Capital,EARL - Communities,Grants,03002,Capital Expenditure,Capital,ADDRESS REDACTED,01/11/2023,0187631,4930,Capital,Stringfellow Bldg Cntrctrs Ltd,17893,,
Chorley Borough Council,http://statistics.data.gov.uk/id/local-authority/30UE,Capital,Capital,EARL - Communities,Grants,03002,Capital Expenditure,Capital,"23/00050/CAG, ADDRESS REDACTED",15/11/2023,0188134,7675,Capital,Stringfellow Bldg Cntrctrs Ltd,17893,,
Chorley Borough Council,http://statistics.data.gov.uk/id/local-authority/30UE,Capital,Capital,EARL - Communities,Grants,03002,Capital Expenditure,Capital,23/00044/DFG,22/11/2023,0188392,2600,Capital,Stringfellow Bldg Cntrctrs Ltd,17893,,
Chorley Borough Council,http://statistics.data.gov.uk/id/local-authority/30UE,Capital,Capital,EARL - Communities,Grants,03002,Capital Expenditure,Capital,23/00149/DFG,22/11/2023,0188393,9575,Capital,Stringfellow Bldg Cntrctrs Ltd,17893,,
Chorley Borough Council,http://statistics.data.gov.uk/id/local-authority/30UE,Capital,Capital,EARL - Communities,Grants,03002,Capital Expenditure,Capital,23/00127/CAG,22/11/2023,0188394,2290,Capital,Stringfellow Bldg Cntrctrs Ltd,17893,,
Chorley Borough Council,http://statistics.data.gov.uk/id/local-authority/30UE,Service Management & Support,1009,CUST - Customer & Digital,Refuse Collection,20037,Cleaning and Domestic Supplies,5012,Exchange 20 yard Street Sweepings Skip @ 82.26 each,22/11/2023,0187938,1619.2,Revenue,SUEZ R&R UK LTD,17615,,
Chorley Borough Council,http://statistics.data.gov.uk/id/local-authority/30UE,Service Management & Support,1009,CUST - Customer & Digital,Refuse Collection,20037,Cleaning and Domestic Supplies,5012,Exchange 35 yard General Waste Skip @ 101.86 each,22/11/2023,0187938,809.46,Revenue,SUEZ R&R UK LTD,17615,,
Chorley Borough Council,http://statistics.data.gov.uk/id/local-authority/30UE,Central Support Services,1009,EARL - Communities,Misc Expenses,40200,Miscellaneous Expenses,5034,For skip and driver hire and waste disposal on clean up day at Clayton Brook Villa Hall on Saturday 30th September 2023,22/11/2023,0188194,520.56,Revenue,SUEZ R&R UK LTD,17615,,
Chorley Borough Council,http://statistics.data.gov.uk/id/local-authority/30UE,Central Support Services,1009,EARL - Communities,Misc Expenses,40200,Miscellaneous Expenses,5034,"For skip and driver hire and waste disposal on clean up day at Manor Road Primary School, Clayton Le Woods on Saturday 7th Octobe",22/11/2023,0188194,606.96,Revenue,SUEZ R&R UK LTD,17615,,
Chorley Borough Council,http://statistics.data.gov.uk/id/local-authority/30UE,Homelessness,1075,EARL - Communities,Grants - Tenant Participation,40142,Grants and Subscriptions,5031,0,15/11/2023,0188206,500,Revenue,Susan McGuigan,85422,,
Chorley Borough Council,http://statistics.data.gov.uk/id/local-authority/30UE,Homelessness,1075,EARL - Communities,Grants - Tenant Participation,40142,Grants and Subscriptions,5031,0,15/11/2023,0188210,500,Revenue,Tawny Burns,87007,,
Chorley Borough Council,http://statistics.data.gov.uk/id/local-authority/30UE,Central Support Services,1009,CUST - Customer & Digital,CCTV Camera Maintenance,40007,"Equipment, Furniture & Materia",5023,CCTV camera repairs,08/11/2023,0187773,1240.22,Revenue,Technology Solutions,72376,,
Chorley Borough Council,http://statistics.data.gov.uk/id/local-authority/30UE,Tourism,1039,GOVN - Policy & Governance,Professional Fees,40063,Services,5027,Chorley Live: Admin and sound equipment expenses.,15/11/2023,0187776,8936,Revenue,The Creative Network,61874,,
Chorley Borough Council,http://statistics.data.gov.uk/id/local-authority/30UE,Business Support,1095,GROW - Commercial Services,Misc Expenses,40200,Miscellaneous Expenses,5034,Travellers eviction on Strawberry Meadows. 24/10/2023,01/11/2023,0187640,1850,Revenue,The ExcluSec Group Ltd,78056,,
Chorley Borough Council,http://statistics.data.gov.uk/id/local-authority/30UE,Business Support,1095,GROW - Commercial Services,Legal Fees,40171,Miscellaneous Expenses,5034,"inv-17927 Provision of SIA Security Officers- October 2023, Quantity 554.50 unit price 17.74",22/11/2023,0188321,8173.33,Revenue,The ExcluSec Group Ltd,78056,,
Chorley Borough Council,http://statistics.data.gov.uk/id/local-authority/30UE,Central Support Services,1009,GROW - Commercial Services,General Repairs - Reactive,20004,Repairs Maintenance & Alts,5005,"Manufacture, Supply and Install x2 roller shutters at Units 1&2 Common Bank Industrial Estate",22/11/2023,0188295,7925,Revenue,The Guardian Shutter Co LTD,21769,,
Chorley Borough Council,http://statistics.data.gov.uk/id/local-authority/30UE,Central Support Services,1009,EARL - Communities,Core Funding Grants,40133,Grants and Subscriptions,5031,Core Small Funding Grant,15/11/2023,0188123,500,Revenue,The Lancashire Wrestling Federation,77429,,
Chorley Borough Council,http://statistics.data.gov.uk/id/local-authority/30UE,Central Support Services,1009,CUST - Customer & Digital,Computer Equipment-Purchase,40098,Communication and Computing,5028,Chorley Bus Station Switch and Licenses,22/11/2023,0187834,3094.92,Revenue,The Networking People (NorthWest) Ltd T/a TNP Ltd,73446,,
Chorley Borough Council,http://statistics.data.gov.uk/id/local-authority/30UE,Central Support Services,1009,CUST - Customer & Digital,Internet Charges,40104,Communication and Computing,5028,"Wholesale FTTC: ADDRESS REDACTED (FTTC7566253) - Annual Rental, Wholesale FTTC: ADDRESS REDACTED (FTTC7568907) ",29/11/2023,0188306,1397.7,Revenue,The Networking People (NorthWest) Ltd T/a TNP Ltd,73446,,
Chorley Borough Council,http://statistics.data.gov.uk/id/local-authority/30UE,Culture & Heritage,1036,GOVN - Policy & Governance,Exhibitions & Special Events,40158,Miscellaneous Expenses,5034,"Astley Illuminated - Design, consultant and delivery fees, 3 days @ 300 per day",22/11/2023,0188264,900,Revenue,The Production Component,86970,,
Chorley Borough Council,http://statistics.data.gov.uk/id/local-authority/30UE,Central Support Services,1009,GOVN - Policy & Governance,HR Recruitment Expenses,15200,Indirect Employee Expenses,5002,Advertising/Recruitment for 5 senior posts,01/11/2023,0184644,29675,Revenue,Tile Hill Interim & Executive Ltd,87048,,
Chorley Borough Council,http://statistics.data.gov.uk/id/local-authority/30UE,Central Support Services,1009,GOVN - Policy & Governance,HR Recruitment Expenses,15200,Indirect Employee Expenses,5002,Advertising/Recruitment for 5 senior posts,01/11/2023,0184934,21425,Revenue,Tile Hill Interim & Executive Ltd,87048,,
Chorley Borough Council,http://statistics.data.gov.uk/id/local-authority/30UE,Central Support Services,1009,GROW - Commercial Services,Professional Fees,40063,Services,5027,"Woodlands Centre, Review of provided documents , Review of local residential & commercial markets, Preperation of financial model",15/11/2023,0188196,3750,Revenue,Trebbi Continuum,77723,,
Chorley Borough Council,http://statistics.data.gov.uk/id/local-authority/30UE,Service Management & Support,1009,PLAN - Planning & Development,Grounds Maintenance Contractor,20043,Grounds Maintenance Costs,5013,Removal of Poplar at Jubilee Recreation Ground Adlington on boundary of site and canal,08/11/2023,0187937,900,Revenue,Treescape North West Ltd,17688,,
Chorley Borough Council,http://statistics.data.gov.uk/id/local-authority/30UE,Service Management & Support,1009,CUST - Customer & Digital,Grounds Maintenance Contractor,20043,Grounds Maintenance Costs,5013,Various tree works - Woodend Rd,08/11/2023,0187939,840,Revenue,Treescape North West Ltd,17688,,
Chorley Borough Council,http://statistics.data.gov.uk/id/local-authority/30UE,Capital,Capital,PLAN - Planning & Development,Main Contractor,03007,Capital Expenditure,Capital,removal of large Ash tree at King George v playing Fields,22/11/2023,0188297,840,Capital,Treescape North West Ltd,17688,,
Chorley Borough Council,http://statistics.data.gov.uk/id/local-authority/30UE,Service Management & Support,1009,CUST - Customer & Digital,Grounds Maintenance Contractor,20043,Grounds Maintenance Costs,5013,Tree report - Astley Park High value trees,08/11/2023,0187694,1350,Revenue,TREESTYLE CONSULTANCY,77078,,
Chorley Borough Council,http://statistics.data.gov.uk/id/local-authority/30UE,Service Management & Support,1009,CUST - Customer & Digital,Grounds Maintenance Contractor,20043,Grounds Maintenance Costs,5013,Treexpert invoice 0194,01/11/2023,0187479,920,Revenue,Treexpert Tree Care,78580,,
Chorley Borough Council,http://statistics.data.gov.uk/id/local-authority/30UE,Service Management & Support,1009,CUST - Customer & Digital,Grounds Maintenance Contractor,20043,Grounds Maintenance Costs,5013,Invoice 0212,15/11/2023,0188086,1620,Revenue,Treexpert Tree Care,78580,,
Chorley Borough Council,http://statistics.data.gov.uk/id/local-authority/30UE,Service Management & Support,1009,CUST - Customer & Digital,Grounds Maintenance Contractor,20043,Grounds Maintenance Costs,5013,Invoice 0206,15/11/2023,0188106,1080,Revenue,Treexpert Tree Care,78580,,
Chorley Borough Council,http://statistics.data.gov.uk/id/local-authority/30UE,Service Management & Support,1009,CUST - Customer & Digital,Grounds Maintenance Contractor,20043,Grounds Maintenance Costs,5013,Invoice 0214,15/11/2023,0188107,600,Revenue,Treexpert Tree Care,78580,,
Chorley Borough Council,http://statistics.data.gov.uk/id/local-authority/30UE,Central Support Services,1009,EARL - Communities,Core Funding Grants,40133,Grants and Subscriptions,5031,Core Small Funding Grant,22/11/2023,0188122,500,Revenue,Trek Therapy CIC,89572,,
Chorley Borough Council,http://statistics.data.gov.uk/id/local-authority/30UE,Service Management & Support,1009,CUST - Customer & Digital,Petrol,30005,Direct Transport Costs,5016,DD UK Fuels,03/11/2023,0186023,888.21,Revenue,Uk Fuels Ltd,57996,,
Chorley Borough Council,http://statistics.data.gov.uk/id/local-authority/30UE,Service Management & Support,1009,CUST - Customer & Digital,Petrol,30005,Direct Transport Costs,5016,DD UK Fuels,03/11/2023,0186034,1151.37,Revenue,Uk Fuels Ltd,57996,,
Chorley Borough Council,http://statistics.data.gov.uk/id/local-authority/30UE,Central Support Services,1009,GOVN - Policy & Governance,Misc Expenses,40200,Miscellaneous Expenses,5034,November 23 Healthcare,15/11/2023,0187903,1458.2,Revenue,UK Healthcare (BDHSC),17241,,
Chorley Borough Council,http://statistics.data.gov.uk/id/local-authority/30UE,Tourism,1039,GOVN - Policy & Governance,Tools & Equipment - Hire,40004,"Equipment, Furniture & Materia",5023,Remembrance Sunday Viewing Screens,22/11/2023,0188332,2695,Revenue,UK Media and Events Limited,71221,,
Chorley Borough Council,http://statistics.data.gov.uk/id/local-authority/30UE,Tourism,1039,GOVN - Policy & Governance,Professional Fees,40063,Services,5027,"Chorley Council - Christmas Lights Switch On - 19 November 2023 - Option 2, Including Stage 1750, PA equipment 1600, Stage Ligh",29/11/2023,0188455,10150,Revenue,UK Media and Events Limited,71221,,
Chorley Borough Council,http://statistics.data.gov.uk/id/local-authority/30UE,Control Accounts,Control,GOVN - Policy & Governance,General Balances,00100,Balance Sheet,Balance,Unify - Oct 23 Monthly Deductions from payroll,15/11/2023,0188070,984,Revenue,Unify Credit Union Ltd,55509,,
Chorley Borough Council,http://statistics.data.gov.uk/id/local-authority/30UE,Homelessness,1075,EARL - Communities,Grants - Tenant Participation,40142,Grants and Subscriptions,5031,0,15/11/2023,0188229,3350,Revenue,Victoria Travis,89685,,
Chorley Borough Council,http://statistics.data.gov.uk/id/local-authority/30UE,Central Support Services,1009,EARL - Communities,Agency Staff,13000,Direct Employee Expenses,5001,Consultancy Frees,01/11/2023,0182693,1986,Revenue,Vivid Resourcing Ltd,76938,,
Chorley Borough Council,http://statistics.data.gov.uk/id/local-authority/30UE,Development Control,1091,PLAN - Planning & Development,Agency Staff,13000,Direct Employee Expenses,5001,"Contract work to assist with planning application processing, Contractor: NAME REDACTED, Time period: 1 April 2023  31 December 2",15/11/2023,0187521,3640,Revenue,Vivid Resourcing Ltd,76938,,
Chorley Borough Council,http://statistics.data.gov.uk/id/local-authority/30UE,Central Support Services,1009,GROW - Commercial Services,Agency Staff,13000,Direct Employee Expenses,5001,Surveyor fees for NAME REDACTED @ 49p/hr - Final Account,08/11/2023,0187542,1813,Revenue,Vivid Resourcing Ltd,76938,,
Chorley Borough Council,http://statistics.data.gov.uk/id/local-authority/30UE,Central Support Services,1009,GROW - Commercial Services,Agency Staff,13000,Direct Employee Expenses,5001,Estates surveyor fees for NAME REDACTED as agreed with NAME REDACTED,15/11/2023,0187639,4606.25,Revenue,Vivid Resourcing Ltd,76938,,
Chorley Borough Council,http://statistics.data.gov.uk/id/local-authority/30UE,Development Control,1091,PLAN - Planning & Development,Agency Staff,13000,Direct Employee Expenses,5001,"Contract work to assist with planning application processing, Contractor: NAME REDACTED, Time period: 1 April 2023  31 December 2",15/11/2023,0187663,1560,Revenue,Vivid Resourcing Ltd,76938,,
